Workbook

Sheet 1. Info
AB1: Algoma Power Inc.
AB2: Atikokan Hydro Inc.
AB3: Attawapiskat Power Corporation
AB4: Bluewater Power Distribution Corp.
AB5: Brant County Power
AB6: Brantford Power Inc.
AB7: Burlington Hydro Inc.
AB8: Cambridge and North Dumfries Hydro
AB9: Canadian Niagara Power Inc. – Eastern Ontario Power/Fort Erie/Port Colborne
AB10: Centre Wellington Hydro Ltd.
AB11: Chapleau Public Utilities Corporation
AB12: COLLUS Power Corp.
AB13: Cooperative Hydro Embrun Inc.
AB14: E.L.K. Energy Inc.
C15: Utility Name | D15: Veridian Connections Inc. | AB15: Enersource Hydro Mississauga Inc.
AB16: Entegrus Powerlines Inc.
C17: Assigned EB Number | D17: EB-2012-0170 | AB17: ENWIN Utilities Ltd.
AB18: Erie Thames Powerlines Corp.
C19: Name and Title | D19: Tracey Strong, Manager Corporate Planning | AB19: Espanola Regional Hydro Distribution Corporation
AB20: Essex Powerlines Corporation
C21: Phone Number | D21: 905 427-9870 ext 2239 | AB21: Festival Hydro Inc.
AB22: Fort Albany Power Corporation
C23: Email Address | D23: tstrong@veridian.on.ca | AB23: Fort Frances Power Corporation
AB24: Greater Sudbury Hydro Inc.
C25: Date | D25: 2012-11-09 | AB25: Grimsby Power Inc.
AB26: Guelph Hydro Electric Systems Inc.
C27: Last COS Re-based Year | D27: 2010 | AB27: Haldimand County Hydro Inc.
AB28: Halton Hills Hydro Inc.
AB29: Hearst Power Distribution Co. Ltd.
A30: Note: Drop-down lists are shaded blue; Input cells are shaded green.
AB32: Horizon Utilities Corporation
AB33: Hydro 2000 Inc.
AB34: Hydro Hawkesbury Inc.
AB35: Hydro One Brampton Networks Inc.
AB36: Hydro One Networks Inc.
AB37: Hydro One Remote Communities Inc.
AB38: Hydro Ottawa Limited
AB39: Innisfil Hydro Dist. Systems Limited
AB40: Kashechewan Power Corporation
AB41: Kenora Hydro Electric Corporation Ltd.
AB42: Kingston Hydro Corporation
AB43: Kitchener-Wilmot Hydro Inc.
AB44: Lakefront Utilities Inc.
AB45: Lakeland Power Distribution Ltd.
AB46: London Hydro Inc.
AB47: Midland Power Utility Corporation
AB48: Milton Hydro Distribution Inc.
AB49: Newmarket – Tay Power Distribution Ltd.
AB50: Niagara Peninsula Energy Inc.
AB51: Niagara-on-the-Lake Hydro Inc.
AB52: Norfolk Power Distribution Ltd.
AB53: North Bay Hydro Distribution Limited
AB54: Northern Ontario Wires Inc.
AB55: Oakville Hydro Distribution Inc.
AB56: Orangeville Hydro Limited
AB57: Orillia Power Distribution Corp.
AB58: Oshawa PUC Networks Inc.
AB59: Ottawa River Power Corporation
AB60: Parry Sound Power Corporation
AB61: Peterborough Distribution Inc.
AB62: PowerStream Inc.
AB63: PUC Distribution Inc.
AB64: Renfrew Hydro Inc.
AB65: Rideau St. Lawrence Distribution Inc.
AB66: St. Thomas Energy Inc.
AB67: Sioux Lookout Hydro Inc.
AB68: Thunder Bay Hydro Electricity Distribution
AB69: Tillsonburg Hydro Inc.
AB70: Toronto Hydro-Electric System Limited
AB71: Veridian Connections Inc.
AB72: Wasaga Distribution Inc.
AB73: Waterloo North Hydro Inc.
AB74: Welland Hydro Electric System Corp.
AB75: Wellington North Power Inc.
AB76: West Coast Huron Energy Inc.
AB77: Westario Power Inc.
AB78: Whitby Hydro Electric Corporation
AB79: Woodstock Hydro Services Inc.

Sheet 2. Table of Contents
D20: 1. Info | I20: 7. Current Wholesale
D22: 2. Table of Contents | I22: 8. Forecast Wholesale
D24: 3. Rate Classes | I24: 9. Adj Network to Current WS
D26: 4. RRR Data | I26: 10. Adj Conn. to Current WS
D28: 5. UTRs and Sub-Transmission | I28: 11. Adj Network to Forecast WS
D30: 6. Historical Wholesale | I30: 12. Adj Conn. to Forecast WS
I32: 13. Final 2013 RTS Rates

Sheet 3. Rate Classes
C13: 1. Select the appropriate rate classes that appear on your most recent Board-Approved Tariff of Rates and Charges. 2. Enter the RTS Network and Connection Rate as it appears on the Tariff of Rates and Charges
C22: Rate Class | H22: Unit | J22: RTSR-Network | M22: RTSR-Connection
C24: Residential | H24: kWh | J24: 0.0062 | M24: 0.0041 | Q24: =IF(OR(ISBLANK(C24), ISERROR(FIND("Choose", C24))=FALSE), 0, 1) -> 1 | R24: ="C" & ROW(C24) -> C24 | S24: =IF(OR(C24="General Service Intermediate Rate Class 1,000 To 4,999 kW (formerly General Service > 50 kW Customers)", C24="General Service Intermediate Rate Class 1,000 To 4,999 kW (formerly Large Use Customers)"), "x", "") ->  | AB24: Choose Rate Class
C25: General Service Less Than 50 kW | H25: kWh | J25: 0.0057 | M25: 0.0037 | Q25: 1 | R25: C25 | S25: =IF(OR(C25="General Service Intermediate Rate Class 1,000 To 4,999 kW (formerly General Service > 50 kW Customers)", C25="General Service Intermediate Rate Class 1,000 To 4,999 kW (formerly Large Use Customers)"), "x", "") ->  | AB25: Residential
C26: General Service 50 to 2,999 kW | H26: kW | J26: 2.7689 | M26: 1.7703 | Q26: 1 | R26: C26 | AB26: Residential Regular
C27: General Service 3,000 to 4,999 kW | H27: kW | J27: 3.0384 | M27: 1.9484 | Q27: 1 | R27: C27 | AB27: Residential Urban
C28: Large Use | H28: kW | J28: 3.0384 | M28: 1.9484 | Q28: 1 | R28: C28 | AB28: Residential Urban Year-Round
C29: Unmetered Scattered Load | H29: kWh | J29: 0.0057 | M29: 0.0037 | Q29: 1 | R29: C29 | AB29: Residential Suburban
C30: Sentinel Lighting | H30: kW | J30: 1.7151 | M30: 1.098 | Q30: 1 | R30: C30 | AB30: Residential Suburban Seasonal
C31: Street Lighting | H31: kW | J31: 1.811 | M31: 1.1569 | Q31: 1 | R31: C31 | AB31: Residential Suburban Year Round
C32: Choose Rate Class | Q32: 0 | R32: C32 | AB32: Residential - Time of Use
C33: Choose Rate Class | Q33: 0 | R33: C33 | AB33: Residential - Hensall
C34: Choose Rate Class | Q34: 0 | R34: C34 | AB34: Residential – High Density [R1]
C35: Choose Rate Class | Q35: 0 | R35: C35 | AB35: Residential – Normal Density [R2]
C36: Choose Rate Class | Q36: 0 | R36: C36 | AB36: Seasonal Residential – High Density [R3]
C37: Choose Rate Class | Q37: 0 | R37: C37 | AB37: Seasonal Residential – Normal Density [R4]
C38: Choose Rate Class | Q38: 0 | R38: C38 | AB38: Residential – Urban [UR]
C39: Choose Rate Class | Q39: 0 | R39: C39
C40: Choose Rate Class | Q40: 0 | R40: C40 | AB40: General Service Less Than 50 kW
C41: Choose Rate Class | Q41: 0 | R41: C41 | AB41: General Service Less Than 50 kW – Single Phase energy-billed [G1]
C42: Choose Rate Class | Q42: 0 | R42: C42 | AB42: General Service Less Than 50 kW – Three Phase energy-billed [G3]
C43: Choose Rate Class | Q43: 0 | R43: C43 | AB43: General Service Less Than 50 kW – Transmission Class energy-billed [T]
C44: Choose Rate Class | Q44: 0 | R44: C44 | AB44: General Service Less Than 50 kW – Urban energy-billed [UG]
C45: Choose Rate Class | Q45: 0 | R45: C45 | AB45: Westport Sewage Treatment Plant
S46: =COUNTIF(S24:S45, "x") -> 0 | AB46: Small Commercial and USL - per meter
AB47: Small Commercial and USL - per connection
AB48: Farms – Single Phase energy-billed [F1]
AB50: General Service 50 to 499 kW
AB51: General Service 50 to 699 kW
AB52: General Service 50 to 999 kW
AB53: General Service 50 to 999 kW - Interval Metered
AB54: General Service 50 to 1,000 kW
AB55: General Service 50 to 1,000 kW - Interval Meters
AB56: General Service 50 to 1,000 kW - Non Interval Meters
AB57: General Service 50 to 1,499 kW
AB58: General Service 50 to 1,499 kW - Interval Metered
AB59: General Service 50 to 2,499 kW
AB60: General Service 50 to 2,999 kW
AB61: General Service 50 to 2,999 kW - Time of Use
AB62: General Service 50 to 4,999 kW
AB63: General Service 50 to 4,999 kW – Interval Metered
AB64: General Service 50 to 4,999 kW - Time of Use
AB65: General Service 50 to 4,999 kW (CoGeneration)
AB66: General Service 50 to 4,999 kW (formerly Time of Use)
AB67: General Service 500 to 4,999 kW
AB68: General Service 700 to 4,999 kW
AB69: General Service 1,000 to 2,999 kW
AB70: General Service 1,000 to 4,999 kW
AB71: General Service 1,000 to 4,999 kW - Interval Meters
AB72: General Service 1,000 To 4,999 kW (co-generation)
AB73: General Service Greater Than 1,000 kW
AB74: General Service Intermediate Rate Class 1,000 To 4,999 kW (formerly Large Use Customers)
AB75: General Service Intermediate Rate Class 1,000 To 4,999 kW (formerly General Service > 50 kW Customers)
AB76: General Service 1,500 to 4,999 kW
AB77: General Service Equal To Or Greater Than 1,500 kW
AB78: General Service Equal To Or Greater Than 1,500 kW - Interval Metered
AB79: General Service Intermediate 1,000 To 4,999 kW
AB80: General Service 2,500 to 4,999 kW
AB81: General Service 3,000 to 4,999 kW
AB82: General Service 3,000 to 4,999 kW - Interval Metered
AB83: General Service 3,000 to 4,999 kW - Intermediate Use
AB84: General Service 3,000 to 4,999 kW - Time of Use
AB85: Intermediate With Self Generation
AB86: General Service - Commercial
AB87: General Service - Institutional
AB88: Farms – Three Phase energy-billed [F3]
AB90: Large Use
AB91: Large Use - Regular
AB92: Large Use > 5000 kW
AB93: Large Use - 3TS
AB94: Large Use - Ford Annex
AB96: Unmetered Scattered Load
AB98: Sentinel Lighting
AB100: Street Lighting
AB102: Embedded Distributor
AB103: Low Voltage Wheeling Charge Rate
AB105: Stand-By
AB106: Standby Power
AB107: Standby Power – INTERIM APPROVAL
AB108: Standby Power - APPROVED ON AN INTERIM BASIS
AB109: Standby - General Service 50 - 1,000 kW
AB110: Standby Power General Service 50 to 1,499 kW
AB111: Standby - General Service 1,000 - 5,000 kW
AB112: Standby Power General Service 1,500 to 4,999 kW
AB113: Standby - Large Use
AB114: Standby Power General Service Large Use
AB115: Standby Distribution Service

Sheet 4. RRR Data
B13: In the green shaded cells, enter the most recent reported RRR billing determinants. Please ensure that billing determinants are non-loss adjusted.
B24: Rate Class | D24: Unit | F24: Non-Loss Adjusted Metered kWh | G24: Non-Loss Adjusted Metered kW | H24: Applicable Loss Factor | J24: Load Factor | L24: Loss Adjusted Billed kWh | M24: Billed kW
B27: =IF('3. Rate Classes'!Q24=1,'3. Rate Classes'!C24, 0) -> Residential | D27: =IF(OR(VLOOKUP($B27, '3. Rate Classes'!$C$24:$H$45,6,0)=0, ISERROR(VLOOKUP($B27, '3. Rate Classes'!$C$24:$H$45,6,0))), "", VLOOKUP($B27, '3. Rate Classes'!$C$24:$H$45,6,0)) -> kWh | F27: 910129690 | H27: 1.0442 | J27: =IF(ISERROR(F27/(G27*30.4*24)), "", IF(D27="kW", F27/(G27*30.4*24), "")) ->  | L27: =IF(OR(H27=0, OR(ISBLANK(H27), TRIM(H27)="")), F27, F27*H27) -> 950357422.3 | M27: =IF(OR(H27=0, OR(ISBLANK(H27), TRIM(H27)="")), G27, G27) -> 0
B28: =IF('3. Rate Classes'!Q25=1,'3. Rate Classes'!C25, 0) -> General Service Less Than 50 kW | D28: =IF(OR(VLOOKUP($B28, '3. Rate Classes'!$C$24:$H$45,6,0)=0, ISERROR(VLOOKUP($B28, '3. Rate Classes'!$C$24:$H$45,6,0))), "", VLOOKUP($B28, '3. Rate Classes'!$C$24:$H$45,6,0)) -> kWh | F28: 290638975 | H28: 1.0442 | L28: =IF(OR(H28=0, OR(ISBLANK(H28), TRIM(H28)="")), F28, F28*H28) -> 303485217.7 | M28: =IF(OR(H28=0, OR(ISBLANK(H28), TRIM(H28)="")), G28, G28) -> 0
B29: =IF('3. Rate Classes'!Q26=1,'3. Rate Classes'!C26, 0) -> General Service 50 to 2,999 kW | D29: =IF(OR(VLOOKUP($B29, '3. Rate Classes'!$C$24:$H$45,6,0)=0, ISERROR(VLOOKUP($B29, '3. Rate Classes'!$C$24:$H$45,6,0))), "", VLOOKUP($B29, '3. Rate Classes'!$C$24:$H$45,6,0)) -> kW | F29: 983615976 | G29: 2348698 | J29: 0.5740022182 | L29: 983615976 | M29: 2348698
B30: =IF('3. Rate Classes'!Q27=1,'3. Rate Classes'!C27, 0) -> General Service 3,000 to 4,999 kW | D30: =IF(OR(VLOOKUP($B30, '3. Rate Classes'!$C$24:$H$45,6,0)=0, ISERROR(VLOOKUP($B30, '3. Rate Classes'!$C$24:$H$45,6,0))), "", VLOOKUP($B30, '3. Rate Classes'!$C$24:$H$45,6,0)) -> kW | F30: 48838845 | G30: 132193 | J30: 0.5063748187 | L30: 48838845 | M30: 132193
B31: =IF('3. Rate Classes'!Q28=1,'3. Rate Classes'!C28, 0) -> Large Use | D31: =IF(OR(VLOOKUP($B31, '3. Rate Classes'!$C$24:$H$45,6,0)=0, ISERROR(VLOOKUP($B31, '3. Rate Classes'!$C$24:$H$45,6,0))), "", VLOOKUP($B31, '3. Rate Classes'!$C$24:$H$45,6,0)) -> kW | F31: 199771107 | G31: 350197 | J31: 0.7818715839 | L31: 199771107 | M31: 350197
B32: =IF('3. Rate Classes'!Q29=1,'3. Rate Classes'!C29, 0) -> Unmetered Scattered Load | D32: =IF(OR(VLOOKUP($B32, '3. Rate Classes'!$C$24:$H$45,6,0)=0, ISERROR(VLOOKUP($B32, '3. Rate Classes'!$C$24:$H$45,6,0))), "", VLOOKUP($B32, '3. Rate Classes'!$C$24:$H$45,6,0)) -> kWh | F32: 5860015 | H32: 1.0442 | L32: 6119027.663 | M32: 0
B33: =IF('3. Rate Classes'!Q30=1,'3. Rate Classes'!C30, 0) -> Sentinel Lighting | D33: =IF(OR(VLOOKUP($B33, '3. Rate Classes'!$C$24:$H$45,6,0)=0, ISERROR(VLOOKUP($B33, '3. Rate Classes'!$C$24:$H$45,6,0))), "", VLOOKUP($B33, '3. Rate Classes'!$C$24:$H$45,6,0)) -> kW | F33: 523767 | G33: 1455 | J33: =IF(ISERROR(F33/(G33*30.4*24)), "", IF(D33="kW", F33/(G33*30.4*24), "")) -> 0.4933899665 | L33: 523767 | M33: 1455
B34: =IF('3. Rate Classes'!Q31=1,'3. Rate Classes'!C31, 0) -> Street Lighting | D34: =IF(OR(VLOOKUP($B34, '3. Rate Classes'!$C$24:$H$45,6,0)=0, ISERROR(VLOOKUP($B34, '3. Rate Classes'!$C$24:$H$45,6,0))), "", VLOOKUP($B34, '3. Rate Classes'!$C$24:$H$45,6,0)) -> kW | F34: 19480569 | G34: 54547 | J34: 0.4894923879 | L34: 19480569 | M34: 54547
B35: =IF('3. Rate Classes'!Q32=1,'3. Rate Classes'!C32, 0) -> 0 | D35: =IF(OR(VLOOKUP($B35, '3. Rate Classes'!$C$24:$H$45,6,0)=0, ISERROR(VLOOKUP($B35, '3. Rate Classes'!$C$24:$H$45,6,0))), "", VLOOKUP($B35, '3. Rate Classes'!$C$24:$H$45,6,0)) ->  | L35: 0 | M35: 0
B36: =IF('3. Rate Classes'!Q33=1,'3. Rate Classes'!C33, 0) -> 0 | D36: =IF(OR(VLOOKUP($B36, '3. Rate Classes'!$C$24:$H$45,6,0)=0, ISERROR(VLOOKUP($B36, '3. Rate Classes'!$C$24:$H$45,6,0))), "", VLOOKUP($B36, '3. Rate Classes'!$C$24:$H$45,6,0)) ->  | L36: 0 | M36: 0
B37: =IF('3. Rate Classes'!Q34=1,'3. Rate Classes'!C34, 0) -> 0 | D37: =IF(OR(VLOOKUP($B37, '3. Rate Classes'!$C$24:$H$45,6,0)=0, ISERROR(VLOOKUP($B37, '3. Rate Classes'!$C$24:$H$45,6,0))), "", VLOOKUP($B37, '3. Rate Classes'!$C$24:$H$45,6,0)) ->  | L37: 0 | M37: 0
B38: =IF('3. Rate Classes'!Q35=1,'3. Rate Classes'!C35, 0) -> 0 | D38: =IF(OR(VLOOKUP($B38, '3. Rate Classes'!$C$24:$H$45,6,0)=0, ISERROR(VLOOKUP($B38, '3. Rate Classes'!$C$24:$H$45,6,0))), "", VLOOKUP($B38, '3. Rate Classes'!$C$24:$H$45,6,0)) ->  | L38: 0 | M38: 0
B39: =IF('3. Rate Classes'!Q36=1,'3. Rate Classes'!C36, 0) -> 0 | D39: =IF(OR(VLOOKUP($B39, '3. Rate Classes'!$C$24:$H$45,6,0)=0, ISERROR(VLOOKUP($B39, '3. Rate Classes'!$C$24:$H$45,6,0))), "", VLOOKUP($B39, '3. Rate Classes'!$C$24:$H$45,6,0)) ->  | L39: 0 | M39: 0
B40: =IF('3. Rate Classes'!Q37=1,'3. Rate Classes'!C37, 0) -> 0 | D40: =IF(OR(VLOOKUP($B40, '3. Rate Classes'!$C$24:$H$45,6,0)=0, ISERROR(VLOOKUP($B40, '3. Rate Classes'!$C$24:$H$45,6,0))), "", VLOOKUP($B40, '3. Rate Classes'!$C$24:$H$45,6,0)) ->  | L40: 0 | M40: 0
B41: =IF('3. Rate Classes'!Q38=1,'3. Rate Classes'!C38, 0) -> 0 | D41: =IF(OR(VLOOKUP($B41, '3. Rate Classes'!$C$24:$H$45,6,0)=0, ISERROR(VLOOKUP($B41, '3. Rate Classes'!$C$24:$H$45,6,0))), "", VLOOKUP($B41, '3. Rate Classes'!$C$24:$H$45,6,0)) ->  | L41: 0 | M41: 0
B42: =IF('3. Rate Classes'!Q39=1,'3. Rate Classes'!C39, 0) -> 0 | D42: =IF(OR(VLOOKUP($B42, '3. Rate Classes'!$C$24:$H$45,6,0)=0, ISERROR(VLOOKUP($B42, '3. Rate Classes'!$C$24:$H$45,6,0))), "", VLOOKUP($B42, '3. Rate Classes'!$C$24:$H$45,6,0)) ->  | L42: 0 | M42: 0
B43: =IF('3. Rate Classes'!Q40=1,'3. Rate Classes'!C40, 0) -> 0 | D43: =IF(OR(VLOOKUP($B43, '3. Rate Classes'!$C$24:$H$45,6,0)=0, ISERROR(VLOOKUP($B43, '3. Rate Classes'!$C$24:$H$45,6,0))), "", VLOOKUP($B43, '3. Rate Classes'!$C$24:$H$45,6,0)) ->  | L43: 0 | M43: 0
B44: =IF('3. Rate Classes'!Q41=1,'3. Rate Classes'!C41, 0) -> 0 | D44: =IF(OR(VLOOKUP($B44, '3. Rate Classes'!$C$24:$H$45,6,0)=0, ISERROR(VLOOKUP($B44, '3. Rate Classes'!$C$24:$H$45,6,0))), "", VLOOKUP($B44, '3. Rate Classes'!$C$24:$H$45,6,0)) ->  | L44: 0 | M44: 0
B45: =IF('3. Rate Classes'!Q42=1,'3. Rate Classes'!C42, 0) -> 0 | D45: =IF(OR(VLOOKUP($B45, '3. Rate Classes'!$C$24:$H$45,6,0)=0, ISERROR(VLOOKUP($B45, '3. Rate Classes'!$C$24:$H$45,6,0))), "", VLOOKUP($B45, '3. Rate Classes'!$C$24:$H$45,6,0)) ->  | L45: 0 | M45: 0
B46: =IF('3. Rate Classes'!Q43=1,'3. Rate Classes'!C43, 0) -> 0 | D46: =IF(OR(VLOOKUP($B46, '3. Rate Classes'!$C$24:$H$45,6,0)=0, ISERROR(VLOOKUP($B46, '3. Rate Classes'!$C$24:$H$45,6,0))), "", VLOOKUP($B46, '3. Rate Classes'!$C$24:$H$45,6,0)) ->  | L46: 0 | M46: 0
B47: =IF('3. Rate Classes'!Q44=1,'3. Rate Classes'!C44, 0) -> 0 | D47: =IF(OR(VLOOKUP($B47, '3. Rate Classes'!$C$24:$H$45,6,0)=0, ISERROR(VLOOKUP($B47, '3. Rate Classes'!$C$24:$H$45,6,0))), "", VLOOKUP($B47, '3. Rate Classes'!$C$24:$H$45,6,0)) ->  | L47: 0 | M47: 0
B48: =IF('3. Rate Classes'!Q45=1,'3. Rate Classes'!C45, 0) -> 0 | D48: =IF(OR(VLOOKUP($B48, '3. Rate Classes'!$C$24:$H$45,6,0)=0, ISERROR(VLOOKUP($B48, '3. Rate Classes'!$C$24:$H$45,6,0))), "", VLOOKUP($B48, '3. Rate Classes'!$C$24:$H$45,6,0)) ->  | L48: 0 | M48: 0

Sheet 5. UTRs and Sub-Transmission
B18: Uniform Transmission Rates | C18: Unit | E18: Effective January 1, 2011 | G18: Effective January 1, 2012 | I18: Effective January 1, 2013
B20: Rate Description | E20: Rate | G20: Rate | I20: Rate
B22: Network Service Rate | C22: kW | E22: 3.22 | G22: 3.57 | I22: 3.63
B24: Line Connection Service Rate | C24: kW | E24: 0.79 | G24: 0.8 | I24: 0.75
B26: Transformation Connection Service Rate | C26: kW | E26: 1.77 | G26: 1.86 | I26: 1.85
B29: Hydro One Sub-Transmission Rates | C29: Unit | E29: Effective January 1, 2011 | G29: Effective January 1, 2012 | I29: Effective January 1, 2013
B33: Rate Description | E33: Rate | G33: Rate | I33: Rate
B35: Network Service Rate | C35: kW | E35: 2.65 | G35: 2.65 | I35: 3.18
B37: Line Connection Service Rate | C37: kW | E37: 0.64 | G37: 0.64 | I37: 0.7
B39: Transformation Connection Service Rate | C39: kW | E39: 1.5 | G39: 1.5 | I39: 1.63
B41: Both Line and Transformation Connection Service Rate | C41: kW | E41: =E39+E37 -> 2.14 | G41: =G39+G37 -> 2.14 | I41: =I39+I37 -> 2.33
B45: Hydro One Sub-Transmission Rate Rider 6A | C45: Unit | E45: Effective January 1, 2011 | G45: Effective January 1, 2012 | I45: Effective January 1, 2013
B47: Rate Description | E47: Rate | G47: Rate | I47: Rate
B49: RSVA Transmission network – 4714 – which affects 1584 | C49: kW | E49: 0.047 | G49: 0 | I49: 0
B51: RSVA Transmission connection – 4716 – which affects 1586 | C51: kW | E51: -0.025 | G51: 0 | I51: 0
B53: RSVA LV – 4750 – which affects 1550 | C53: kW | E53: 0.058 | G53: 0 | I53: 0
B55: RARA 1 – 2252 – which affects 1590 | C55: kW | E55: -0.075 | G55: 0 | I55: 0
B57: Hydro One Sub-Transmission Rate Rider 6A | C57: kW | E57: =SUM(E49:E55) -> 0.005 | G57: =SUM(G49:G55) -> 0 | I57: =SUM(I49:I55) -> 0

Sheet 6. Historical Wholesale
B21: IESO | D21: Network | H21: Line Connection | L21: Transformation Connection | P21: Total Line
B22: Month | D22: Units Billed | E22: Rate | F22: Amount | H22: Units Billed | I22: Rate | J22: Amount | L22: Units Billed | M22: Rate | N22: Amount | P22: Amount
B24: January | D24: ='[3]Open Market'!$DD$71 -> 246335 | E24: =IF(D24<>0,F24/D24,0) -> 3.22 | F24: ='[3]Open Market'!$DD$73 -> 793198.7 | H24: ='[3]Open Market'!$DD$77 -> 65072 | I24: =IF(H24<>0,J24/H24,0) -> 0.79 | J24: ='[3]Open Market'!$DD$152 -> 51406.88 | L24: ='[3]Open Market'!$DD$83 -> 250243 | M24: =IF(L24<>0,N24/L24,0) -> 1.77 | N24: ='[3]Open Market'!$DD$153 -> 442930.11 | P24: =J24+N24 -> 494336.99
B25: February | D25: ='[3]Open Market'!$DE$71 -> 233748 | E25: 3.22 | F25: ='[3]Open Market'!$DE$73 -> 752668.56 | H25: ='[3]Open Market'!$DE$77 -> 60422 | I25: 0.79 | J25: ='[3]Open Market'!$DE$152 -> 47733.38 | L25: ='[3]Open Market'!$DE$83 -> 238120 | M25: 1.77 | N25: ='[3]Open Market'!$DE$153 -> 421472.4 | P25: 469205.78
B26: March | D26: ='[3]Open Market'!$DF$71 -> 222942 | E26: 3.22 | F26: ='[3]Open Market'!$DF$73 -> 717873.24 | H26: ='[3]Open Market'!$DF$77 -> 66268 | I26: 0.79 | J26: ='[3]Open Market'!$DF$152 -> 52351.72 | L26: ='[3]Open Market'!$DF$83 -> 230814 | M26: 1.77 | N26: ='[3]Open Market'!$DF$153 -> 408540.78 | P26: 460892.5
B27: April | D27: ='[3]Open Market'!$DG$71 -> 189586 | E27: 3.22 | F27: ='[3]Open Market'!$DG$73 -> 610466.92 | H27: ='[3]Open Market'!$DG$77 -> 61978 | I27: 0.79 | J27: ='[3]Open Market'!$DG$152 -> 48962.62 | L27: ='[3]Open Market'!$DG$83 -> 214844 | M27: 1.77 | N27: ='[3]Open Market'!$DG$153 -> 380273.88 | P27: 429236.5
B28: May | D28: ='[3]Open Market'!$DH$71 -> 205535 | E28: 3.22 | F28: ='[3]Open Market'!$DH$73 -> 661822.7 | H28: ='[3]Open Market'!$DH$77 -> 48037 | I28: 0.79 | J28: ='[3]Open Market'!$DH$152 -> 37949.23 | L28: ='[3]Open Market'!$DH$83 -> 213663 | M28: 1.77 | N28: ='[3]Open Market'!$DH$153 -> 378183.51 | P28: 416132.74
B29: June | D29: ='[3]Open Market'!$DI$71 -> 240287 | E29: 3.22 | F29: ='[3]Open Market'!$DI$73 -> 773724.14 | H29: ='[3]Open Market'!$DI$77 -> 64897 | I29: 0.79 | J29: ='[3]Open Market'!$DI$152 -> 51268.63 | L29: ='[3]Open Market'!$DI$83 -> 250025 | M29: 1.77 | N29: ='[3]Open Market'!$DI$153 -> 442544.25 | P29: 493812.88
B30: July | D30: ='[3]Open Market'!$DJ$71 -> 280710 | E30: 3.22 | F30: ='[3]Open Market'!$DJ$73 -> 903886.2 | H30: ='[3]Open Market'!$DJ$77 -> 80755 | I30: 0.79 | J30: ='[3]Open Market'!$DJ$152 -> 63796.45 | L30: ='[3]Open Market'!$DJ$83 -> 290221 | M30: 1.77 | N30: ='[3]Open Market'!$DJ$153 -> 513691.17 | P30: 577487.62
B31: August | D31: ='[3]Open Market'!$DK$71 -> 234201 | E31: 3.22 | F31: ='[3]Open Market'!$DK$73 -> 754127.22 | H31: ='[3]Open Market'!$DK$77 -> 55260 | I31: 0.7905003619 | J31: ='[3]Open Market'!$DK$152 -> 43683.05 | L31: ='[3]Open Market'!$DK$83 -> 240916 | M31: 1.773497153 | N31: ='[3]Open Market'!$DK$153 -> 427263.84 | P31: 470946.89
B32: September | D32: ='[3]Open Market'!$DL$71 -> 203012 | E32: 3.22 | F32: ='[3]Open Market'!$DL$73 -> 653698.64 | H32: ='[3]Open Market'!$DL$77 -> 47431 | I32: 0.79 | J32: ='[3]Open Market'!$DL$152 -> 37470.49 | L32: ='[3]Open Market'!$DL$83 -> 217375 | M32: 1.773273329 | N32: ='[3]Open Market'!$DL$153 -> 385465.29 | P32: 422935.78
B33: October | D33: ='[3]Open Market'!$DM$71 -> 188985 | E33: 3.22 | F33: ='[3]Open Market'!$DM$73 -> 608531.7 | H33: ='[3]Open Market'!$DM$77 -> 46883 | I33: 0.7901516541 | J33: ='[3]Open Market'!$DM$152 -> 37044.68 | L33: ='[3]Open Market'!$DM$83 -> 195335 | M33: 1.771621983 | N33: ='[3]Open Market'!$DM$153 -> 346059.78 | P33: 383104.46
B34: November | D34: ='[3]Open Market'!$DN$71 -> 206373 | E34: 3.22 | F34: ='[3]Open Market'!$DN$73 -> 664521.06 | H34: ='[3]Open Market'!$DN$77 -> 48944 | I34: 0.7897256048 | J34: ='[3]Open Market'!$DN$152 -> 38652.33 | L34: ='[3]Open Market'!$DN$83 -> 210097 | M34: 1.772064047 | N34: ='[3]Open Market'!$DN$153 -> 372305.34 | P34: 410957.67
B35: December | D35: ='[3]Open Market'!$DO$71 -> 232118 | E35: 3.22 | F35: ='[3]Open Market'!$DO$73 -> 747419.96 | H35: ='[3]Open Market'!$DO$77 -> 66304 | I35: 0.7910961631 | J35: ='[3]Open Market'!$DO$152 -> 52452.84 | L35: ='[3]Open Market'!$DO$83 -> 232118 | M35: 1.772646025 | N35: ='[3]Open Market'!$DO$153 -> 411463.05 | P35: 463915.89
B37: Total | D37: =SUM(D24:D35) -> 2683832 | E37: =IF(D37<>0,F37/D37,0) -> 3.22 | F37: =SUM(F24:F35) -> 8641939.04 | H37: =SUM(H24:H35) -> 712251 | I37: =IF(H37<>0,J37/H37,0) -> 0.79013199 | J37: =SUM(J24:J35) -> 562772.3 | L37: =SUM(L24:L35) -> 2783771 | M37: =IF(L37<>0,N37/L37,0) -> 1.771048481 | N37: =SUM(N24:N35) -> 4930193.4 | P37: =SUM(P24:P35) -> 5492965.7
B39: Hydro One | D39: Network | H39: Line Connection | L39: Transformation Connection | P39: Total Line
B41: Month | D41: Units Billed | E41: Rate | F41: Amount | H41: Units Billed | I41: Rate | J41: Amount | L41: Units Billed | M41: Rate | N41: Amount | P41: Amount
B43: January | D43: 185376 | E43: =IF(D43<>0,F43/D43,0) -> 2.649997842 | F43: 491246 | H43: 155976 | I43: =IF(H43<>0,J43/H43,0) -> 0.640002308 | J43: 99825 | L43: 186424 | M43: =IF(L43<>0,N43/L43,0) -> 1.5 | N43: 279636 | P43: =J43+N43 -> 379461
B44: February | D44: 166195 | E44: 2.650001504 | F44: 440417 | H44: 138205 | I44: 0.6399985529 | J44: 88451 | L44: 167050 | M44: 1.5 | N44: 250575 | P44: 339026
B45: March | D45: 156966 | E45: 2.650000637 | F45: 415960 | H45: 127633 | I45: 0.6399990598 | J45: 81685 | L45: 158289 | M45: 1.500003159 | N45: 237434 | P45: 319119
B46: April | D46: 141262 | E46: 2.649997876 | F46: 374344 | H46: 123435 | I46: 0.6399967594 | J46: 78998 | L46: 149709 | M46: 1.50000334 | N46: 224564 | P46: 303562
B47: May | D47: 205355 | E47: 2.650001217 | F47: 544191 | H47: 165615 | I47: 0.6400024152 | J47: 105994 | L47: 205898 | M47: 1.5 | N47: 308847 | P47: 414841
B48: June | D48: 197819 | E48: 2.649998231 | F48: 524220 | H48: 157572 | I48: 0.6399994923 | J48: 100846 | L48: 197819 | M48: 1.500002528 | N48: 296729 | P48: 397575
B49: July | D49: ='[4]H1 Summ RTSR'!$H$10 -> 232251 | E49: 2.649999354 | F49: 615465 | H49: 167952 | I49: 0.6399983329 | J49: 107489 | L49: 194555 | M49: 1.50000257 | N49: 291833 | P49: 399322
B50: August | D50: ='[4]H1 Summ RTSR'!$H$11 -> 206022 | E50: 2.65 | F50: ='[4]H1 Summ RTSR'!$I$11 -> 545958.3 | H50: 141559 | I50: 0.6400016954 | J50: 90598 | L50: 164442 | M50: 1.5 | N50: 246663 | P50: 337261
B51: September | D51: ='[4]H1 Summ RTSR'!$H$12 -> 173789 | E51: 2.65 | F51: ='[4]H1 Summ RTSR'!$I$12 -> 460540.85 | H51: 130369 | I51: 0.6399987727 | J51: 83436 | L51: 145193 | M51: 1.500003444 | N51: 217790 | P51: 301226
B52: October | D52: ='[4]H1 Summ RTSR'!$H$13 -> 163608 | E52: 2.65 | F52: ='[4]H1 Summ RTSR'!$I$13 -> 433561.2 | H52: 118238 | I52: 0.6399972936 | J52: 75672 | L52: 134096 | M52: 1.5 | N52: 201144 | P52: 276816
B53: November | D53: ='[4]H1 Summ RTSR'!$H$14 -> 191840 | E53: 2.65 | F53: ='[4]H1 Summ RTSR'!$I$14 -> 508376 | H53: 147708 | I53: 0.6399991876 | J53: 94533 | L53: 163623 | M53: 1.500003056 | N53: 245435 | P53: 339968
B54: December | D54: ='[4]H1 Summ RTSR'!$H$15 -> 206494 | E54: 2.65 | F54: ='[4]H1 Summ RTSR'!$I$15 -> 547209.1 | H54: 160723 | I54: 0.6400017421 | J54: 102863 | L54: 176883 | M54: 1.500002827 | N54: 265325 | P54: 368188
B56: Total | D56: =SUM(D43:D54) -> 2226977 | E56: =IF(D56<>0,F56/D56,0) -> 2.649999731 | F56: =SUM(F43:F54) -> 5901488.45 | H56: =SUM(H43:H54) -> 1734985 | I56: =IF(H56<>0,J56/H56,0) -> 0.6399997695 | J56: =SUM(J43:J54) -> 1110390 | L56: =SUM(L43:L54) -> 2043981 | M56: =IF(L56<>0,N56/L56,0) -> 1.500001712 | N56: =SUM(N43:N54) -> 3065975 | P56: =SUM(P43:P54) -> 4176365
B58: Total | D58: Network | H58: Line Connection | L58: Transformation Connection | P58: Total Line
B60: Month | D60: Units Billed | E60: Rate | F60: Amount | H60: Units Billed | I60: Rate | J60: Amount | L60: Units Billed | M60: Rate | N60: Amount | P60: Amount
B62: January | D62: =D24+D43 -> 431711 | E62: =IF(D62<>0,F62/D62,0) -> 2.975242002 | F62: =F24+F43 -> 1284444.7 | H62: =H24+H43 -> 221048 | I62: =IF(H62<>0,J62/H62,0) -> 0.6841585538 | J62: =J24+J43 -> 151231.88 | L62: =L24+L43 -> 436667 | M62: =IF(L62<>0,N62/L62,0) -> 1.654730286 | N62: =N24+N43 -> 722566.11 | P62: =J62+N62 -> 873797.99
B63: February | D63: 399943 | E63: 2.983138997 | F63: 1193085.56 | H63: 198627 | I63: 0.6856287413 | J63: 136184.38 | L63: 405170 | M63: 1.65868006 | N63: 672047.4 | P63: 808231.78
B64: March | D64: 379908 | E64: 2.984494246 | F64: 1133833.24 | H64: 193901 | I64: 0.6912636861 | J64: 134036.72 | L64: 389103 | M64: 1.660163967 | N64: 645974.78 | P64: 780011.5
B65: April | D65: 330848 | E65: 2.976626487 | F65: 984810.92 | H65: 185413 | I65: 0.6901383398 | J65: 127960.62 | L65: 364553 | M65: 1.659121938 | N65: 604837.88 | P65: 732798.5
B66: May | D66: 410890 | E66: 2.935125459 | F66: 1206013.7 | H66: 213652 | I66: 0.6737275102 | J66: 143943.23 | L66: 419561 | M66: 1.637498504 | N66: 687030.51 | P66: 830973.74
B67: June | D67: 438106 | E67: 2.962625803 | F67: 1297944.14 | H67: 222469 | I67: 0.6837565234 | J67: 152114.63 | L67: 447844 | M67: 1.650738315 | N67: 739273.25 | P67: 891387.88
B68: July | D68: 512961 | E68: 2.961923421 | F68: 1519351.2 | H68: 248707 | I68: 0.6887037759 | J68: 171285.45 | L68: 484776 | M68: 1.661642016 | N68: 805524.17 | P68: 976809.62
B69: August | D69: 440223 | E69: 2.953243061 | F69: 1300085.52 | H69: 196819 | I69: 0.6822565403 | J69: 134281.05 | L69: 405358 | M69: 1.662547279 | N69: 673926.84 | P69: 808207.89
B70: September | D70: 376801 | E70: 2.957103325 | F70: 1114239.49 | H70: 177800 | I70: 0.6800140045 | J70: 120906.49 | L70: 362568 | M70: 1.663840411 | N70: 603255.29 | P70: 724161.78
B71: October | D71: 352593 | E71: 2.955512163 | F71: 1042092.9 | H71: 165121 | I71: 0.682630798 | J71: 112716.68 | L71: 329431 | M71: 1.661057338 | N71: 547203.78 | P71: 659920.46
B72: November | D72: 398213 | E72: 2.94540123 | F72: 1172897.06 | H72: 196652 | I72: 0.6772640502 | J72: 133185.33 | L72: 373720 | M72: 1.652949641 | N72: 617740.34 | P72: 750925.67
B73: December | D73: 438612 | E73: 2.951649886 | F73: 1294629.06 | H73: 227027 | I73: 0.6841293767 | J73: 155315.84 | L73: 409001 | M73: 1.654734463 | N73: 676788.05 | P73: 832103.89
B75: Total | D75: =SUM(D62:D73) -> 4910809 | E75: =IF(D75<>0,F75/D75,0) -> 2.961513569 | F75: =SUM(F62:F73) -> 14543427.49 | H75: =SUM(H62:H73) -> 2447236 | I75: =IF(H75<>0,J75/H75,0) -> 0.683694707 | J75: =SUM(J62:J73) -> 1673162.3 | L75: =SUM(L62:L73) -> 4827752 | M75: =IF(L75<>0,N75/L75,0) -> 1.656292287 | N75: =SUM(N62:N73) -> 7996168.4 | P75: =SUM(P62:P73) -> 9669330.7

Sheet 7. Current Wholesale
B13: The purpose of this sheet is to calculate the expected billing when current 2012 Uniform Transmission Rates are applied against historical 2011 transmission units.
B20: IESO | D20: Network | H20: Line Connection | L20: Transformation Connection | P20: Total Line
B22: Month | D22: Units Billed | E22: Rate | F22: Amount | H22: Units Billed | I22: Rate | J22: Amount | L22: Units Billed | M22: Rate | N22: Amount | P22: Amount
B24: January | D24: ='6. Historical Wholesale'!D24 -> 246335 | E24: ='5. UTRs and Sub-Transmission'!G22 -> 3.57 | F24: =D24*E24 -> 879415.95 | H24: ='6. Historical Wholesale'!H24 -> 65072 | I24: ='5. UTRs and Sub-Transmission'!G24 -> 0.8 | J24: =H24*I24 -> 52057.6 | L24: ='6. Historical Wholesale'!L24 -> 250243 | M24: ='5. UTRs and Sub-Transmission'!G26 -> 1.86 | N24: =L24*M24 -> 465451.98 | P24: =J24+N24 -> 517509.58
B25: February | D25: ='6. Historical Wholesale'!D25 -> 233748 | E25: =E24 -> 3.57 | F25: =D25*E25 -> 834480.36 | H25: ='6. Historical Wholesale'!H25 -> 60422 | I25: =I24 -> 0.8 | J25: =H25*I25 -> 48337.6 | L25: ='6. Historical Wholesale'!L25 -> 238120 | M25: =M24 -> 1.86 | N25: =L25*M25 -> 442903.2 | P25: 491240.8
B26: March | D26: ='6. Historical Wholesale'!D26 -> 222942 | E26: =E25 -> 3.57 | F26: 795902.94 | H26: ='6. Historical Wholesale'!H26 -> 66268 | I26: =I25 -> 0.8 | J26: 53014.4 | L26: ='6. Historical Wholesale'!L26 -> 230814 | M26: =M25 -> 1.86 | N26: 429314.04 | P26: 482328.44
B27: April | D27: ='6. Historical Wholesale'!D27 -> 189586 | E27: 3.57 | F27: 676822.02 | H27: ='6. Historical Wholesale'!H27 -> 61978 | I27: 0.8 | J27: 49582.4 | L27: ='6. Historical Wholesale'!L27 -> 214844 | M27: 1.86 | N27: 399609.84 | P27: 449192.24
B28: May | D28: ='6. Historical Wholesale'!D28 -> 205535 | E28: 3.57 | F28: 733759.95 | H28: ='6. Historical Wholesale'!H28 -> 48037 | I28: 0.8 | J28: 38429.6 | L28: ='6. Historical Wholesale'!L28 -> 213663 | M28: 1.86 | N28: 397413.18 | P28: 435842.78
B29: June | D29: ='6. Historical Wholesale'!D29 -> 240287 | E29: 3.57 | F29: 857824.59 | H29: ='6. Historical Wholesale'!H29 -> 64897 | I29: 0.8 | J29: 51917.6 | L29: ='6. Historical Wholesale'!L29 -> 250025 | M29: 1.86 | N29: 465046.5 | P29: 516964.1
B30: July | D30: ='6. Historical Wholesale'!D30 -> 280710 | E30: 3.57 | F30: 1002134.7 | H30: ='6. Historical Wholesale'!H30 -> 80755 | I30: 0.8 | J30: 64604 | L30: ='6. Historical Wholesale'!L30 -> 290221 | M30: 1.86 | N30: 539811.06 | P30: 604415.06
B31: August | D31: ='6. Historical Wholesale'!D31 -> 234201 | E31: 3.57 | F31: 836097.57 | H31: ='6. Historical Wholesale'!H31 -> 55260 | I31: 0.8 | J31: 44208 | L31: ='6. Historical Wholesale'!L31 -> 240916 | M31: 1.86 | N31: 448103.76 | P31: 492311.76
B32: September | D32: ='6. Historical Wholesale'!D32 -> 203012 | E32: 3.57 | F32: 724752.84 | H32: ='6. Historical Wholesale'!H32 -> 47431 | I32: 0.8 | J32: 37944.8 | L32: ='6. Historical Wholesale'!L32 -> 217375 | M32: 1.86 | N32: 404317.5 | P32: 442262.3
B33: October | D33: ='6. Historical Wholesale'!D33 -> 188985 | E33: 3.57 | F33: 674676.45 | H33: ='6. Historical Wholesale'!H33 -> 46883 | I33: 0.8 | J33: 37506.4 | L33: ='6. Historical Wholesale'!L33 -> 195335 | M33: 1.86 | N33: 363323.1 | P33: 400829.5
B34: November | D34: ='6. Historical Wholesale'!D34 -> 206373 | E34: 3.57 | F34: 736751.61 | H34: ='6. Historical Wholesale'!H34 -> 48944 | I34: 0.8 | J34: 39155.2 | L34: ='6. Historical Wholesale'!L34 -> 210097 | M34: 1.86 | N34: 390780.42 | P34: 429935.62
B35: December | D35: ='6. Historical Wholesale'!D35 -> 232118 | E35: 3.57 | F35: 828661.26 | H35: ='6. Historical Wholesale'!H35 -> 66304 | I35: 0.8 | J35: 53043.2 | L35: ='6. Historical Wholesale'!L35 -> 232118 | M35: 1.86 | N35: 431739.48 | P35: 484782.68
B37: Total | D37: =SUM(D24:D35) -> 2683832 | E37: =IF(D37<>0,F37/D37,0) -> 3.57 | F37: =SUM(F24:F35) -> 9581280.24 | H37: =SUM(H24:H35) -> 712251 | I37: =IF(H37<>0,J37/H37,0) -> 0.8 | J37: =SUM(J24:J35) -> 569800.8 | L37: =SUM(L24:L35) -> 2783771 | M37: =IF(L37<>0,N37/L37,0) -> 1.86 | N37: =SUM(N24:N35) -> 5177814.06 | P37: =SUM(P24:P35) -> 5747614.86
B39: Hydro One | D39: Network | H39: Line Connection | L39: Transformation Connection | P39: Total Line
B41: Month | D41: Units Billed | E41: Rate | F41: Amount | H41: Units Billed | I41: Rate | J41: Amount | L41: Units Billed | M41: Rate | N41: Amount | P41: Amount
B43: January | D43: ='6. Historical Wholesale'!D43 -> 185376 | E43: ='5. UTRs and Sub-Transmission'!G35+'5. UTRs and Sub-Transmission'!G49 -> 2.65 | F43: =D43*E43 -> 491246.4 | H43: ='6. Historical Wholesale'!H43 -> 155976 | I43: ='5. UTRs and Sub-Transmission'!G37+'5. UTRs and Sub-Transmission'!G51 -> 0.64 | J43: =H43*I43 -> 99824.64 | L43: ='6. Historical Wholesale'!L43 -> 186424 | M43: ='5. UTRs and Sub-Transmission'!G39 -> 1.5 | N43: =L43*M43 -> 279636 | P43: =J43+N43 -> 379460.64
B44: February | D44: ='6. Historical Wholesale'!D44 -> 166195 | E44: =E43 -> 2.65 | F44: =D44*E44 -> 440416.75 | H44: ='6. Historical Wholesale'!H44 -> 138205 | I44: =I43 -> 0.64 | J44: =H44*I44 -> 88451.2 | L44: ='6. Historical Wholesale'!L44 -> 167050 | M44: =M43 -> 1.5 | N44: =L44*M44 -> 250575 | P44: 339026.2
B45: March | D45: ='6. Historical Wholesale'!D45 -> 156966 | E45: =E44 -> 2.65 | F45: 415959.9 | H45: ='6. Historical Wholesale'!H45 -> 127633 | I45: =I44 -> 0.64 | J45: 81685.12 | L45: ='6. Historical Wholesale'!L45 -> 158289 | M45: =M44 -> 1.5 | N45: 237433.5 | P45: 319118.62
B46: April | D46: ='6. Historical Wholesale'!D46 -> 141262 | E46: 2.65 | F46: 374344.3 | H46: ='6. Historical Wholesale'!H46 -> 123435 | I46: 0.64 | J46: 78998.4 | L46: ='6. Historical Wholesale'!L46 -> 149709 | M46: =M45 -> 1.5 | N46: 224563.5 | P46: 303561.9
B47: May | D47: ='6. Historical Wholesale'!D47 -> 205355 | E47: 2.65 | F47: 544190.75 | H47: ='6. Historical Wholesale'!H47 -> 165615 | I47: 0.64 | J47: 105993.6 | L47: ='6. Historical Wholesale'!L47 -> 205898 | M47: 1.5 | N47: 308847 | P47: 414840.6
B48: June | D48: ='6. Historical Wholesale'!D48 -> 197819 | E48: 2.65 | F48: 524220.35 | H48: ='6. Historical Wholesale'!H48 -> 157572 | I48: 0.64 | J48: 100846.08 | L48: ='6. Historical Wholesale'!L48 -> 197819 | M48: 1.5 | N48: 296728.5 | P48: 397574.58
B49: July | D49: ='6. Historical Wholesale'!D49 -> 232251 | E49: 2.65 | F49: 615465.15 | H49: ='6. Historical Wholesale'!H49 -> 167952 | I49: 0.64 | J49: 107489.28 | L49: ='6. Historical Wholesale'!L49 -> 194555 | M49: 1.5 | N49: 291832.5 | P49: 399321.78
B50: August | D50: ='6. Historical Wholesale'!D50 -> 206022 | E50: 2.65 | F50: 545958.3 | H50: ='6. Historical Wholesale'!H50 -> 141559 | I50: 0.64 | J50: 90597.76 | L50: ='6. Historical Wholesale'!L50 -> 164442 | M50: 1.5 | N50: 246663 | P50: 337260.76
B51: September | D51: ='6. Historical Wholesale'!D51 -> 173789 | E51: 2.65 | F51: 460540.85 | H51: ='6. Historical Wholesale'!H51 -> 130369 | I51: 0.64 | J51: 83436.16 | L51: ='6. Historical Wholesale'!L51 -> 145193 | M51: 1.5 | N51: 217789.5 | P51: 301225.66
B52: October | D52: ='6. Historical Wholesale'!D52 -> 163608 | E52: 2.65 | F52: 433561.2 | H52: ='6. Historical Wholesale'!H52 -> 118238 | I52: 0.64 | J52: 75672.32 | L52: ='6. Historical Wholesale'!L52 -> 134096 | M52: 1.5 | N52: 201144 | P52: 276816.32
B53: November | D53: ='6. Historical Wholesale'!D53 -> 191840 | E53: 2.65 | F53: 508376 | H53: ='6. Historical Wholesale'!H53 -> 147708 | I53: 0.64 | J53: 94533.12 | L53: ='6. Historical Wholesale'!L53 -> 163623 | M53: 1.5 | N53: 245434.5 | P53: 339967.62
B54: December | D54: ='6. Historical Wholesale'!D54 -> 206494 | E54: 2.65 | F54: 547209.1 | H54: ='6. Historical Wholesale'!H54 -> 160723 | I54: 0.64 | J54: 102862.72 | L54: ='6. Historical Wholesale'!L54 -> 176883 | M54: 1.5 | N54: 265324.5 | P54: 368187.22
B56: Total | D56: =SUM(D43:D54) -> 2226977 | E56: =IF(D56<>0,F56/D56,0) -> 2.65 | F56: =SUM(F43:F54) -> 5901489.05 | H56: =SUM(H43:H54) -> 1734985 | I56: =IF(H56<>0,J56/H56,0) -> 0.64 | J56: =SUM(J43:J54) -> 1110390.4 | L56: =SUM(L43:L54) -> 2043981 | M56: =IF(L56<>0,N56/L56,0) -> 1.5 | N56: =SUM(N43:N54) -> 3065971.5 | P56: =SUM(P43:P54) -> 4176361.9
B58: Total | D58: Network | H58: Line Connection | L58: Transformation Connection | P58: Total Line
B60: Month | D60: Units Billed | E60: Rate | F60: Amount | H60: Units Billed | I60: Rate | J60: Amount | L60: Units Billed | M60: Rate | N60: Amount | P60: Amount
B62: January | D62: =D24+D43 -> 431711 | E62: =IF(D62<>0,F62/D62,0) -> 3.174953499 | F62: =F24+F43 -> 1370662.35 | H62: =H24+H43 -> 221048 | I62: =IF(H62<>0,J62/H62,0) -> 0.6871007202 | J62: =J24+J43 -> 151882.24 | L62: =L24+L43 -> 436667 | M62: =IF(L62<>0,N62/L62,0) -> 1.706307049 | N62: =N24+N43 -> 745087.98 | P62: =J62+N62 -> 896970.22
B63: February | D63: 399943 | E63: 3.187697022 | F63: 1274897.11 | H63: 198627 | I63: 0.6886717314 | J63: 136788.8 | L63: 405170 | M63: 1.711573414 | N63: 693478.2 | P63: 830267
B64: March | D64: 379908 | E64: 3.189885025 | F64: 1211862.84 | H64: 193901 | I64: 0.6946819253 | J64: 134699.52 | L64: 389103 | M64: 1.713550242 | N64: 666747.54 | P64: 801447.06
B65: April | D65: 330848 | E65: 3.177188074 | F65: 1051166.32 | H65: 185413 | I65: 0.693483197 | J65: 128580.8 | L65: 364553 | M65: 1.712160756 | N65: 624173.34 | P65: 752754.14
B66: May | D66: 410890 | E66: 3.110201514 | F66: 1277950.7 | H66: 213652 | I66: 0.6759740138 | J66: 144423.2 | L66: 419561 | M66: 1.683331339 | N66: 706260.18 | P66: 850683.38
B67: June | D67: 438106 | E67: 3.154590305 | F67: 1382044.94 | H67: 222469 | I67: 0.6866740085 | J67: 152763.68 | L67: 447844 | M67: 1.700982932 | N67: 761775 | P67: 914538.68
B68: July | D68: 512961 | E68: 3.153455818 | F68: 1617599.85 | H68: 248707 | I68: 0.6919518952 | J68: 172093.28 | L68: 484776 | M68: 1.715521313 | N68: 831643.56 | P68: 1003736.84
B69: August | D69: 440223 | E69: 3.13944494 | F69: 1382055.87 | H69: 196819 | I69: 0.6849224922 | J69: 134805.76 | L69: 405358 | M69: 1.713958427 | N69: 694766.76 | P69: 829572.52
B70: September | D70: 376801 | E70: 3.145675542 | F70: 1185293.69 | H70: 177800 | I70: 0.6826825647 | J70: 121380.96 | L70: 362568 | M70: 1.715835374 | N70: 622107 | P70: 743487.96
B71: October | D71: 352593 | E71: 3.14310735 | F71: 1108237.65 | H71: 165121 | I71: 0.6854289884 | J71: 113178.72 | L71: 329431 | M71: 1.713460785 | N71: 564467.1 | P71: 677645.82
B72: November | D72: 398213 | E72: 3.12678795 | F72: 1245127.61 | H72: 196652 | I72: 0.6798218172 | J72: 133688.32 | L72: 373720 | M72: 1.702383924 | N72: 636214.92 | P72: 769903.24
B73: December | D73: 438612 | E73: 3.136873501 | F73: 1375870.36 | H73: 227027 | I73: 0.6867285389 | J73: 155905.92 | L73: 409001 | M73: 1.704308743 | N73: 697063.98 | P73: 852969.9
B75: Total | D75: =SUM(D62:D73) -> 4910809 | E75: =IF(D75<>0,F75/D75,0) -> 3.152794028 | F75: =SUM(F62:F73) -> 15482769.29 | H75: =SUM(H62:H73) -> 2447236 | I75: =IF(H75<>0,J75/H75,0) -> 0.6865668861 | J75: =SUM(J62:J73) -> 1680191.2 | L75: =SUM(L62:L73) -> 4827752 | M75: =IF(L75<>0,N75/L75,0) -> 1.707582651 | N75: =SUM(N62:N73) -> 8243785.56 | P75: =SUM(P62:P73) -> 9923976.76

Sheet 8. Forecast Wholesale
B13: The purpose of this sheet is to calculate the expected billing when forecasted 2013 Uniform Transmission Rates are applied against historical 2011 transmission units.
B20: IESO | D20: Network | H20: Line Connection | L20: Transformation Connection | P20: Total Line
B22: Month | D22: Units Billed | E22: Rate | F22: Amount | H22: Units Billed | I22: Rate | J22: Amount | L22: Units Billed | M22: Rate | N22: Amount | P22: Amount
B24: January | D24: ='6. Historical Wholesale'!D24 -> 246335 | E24: ='5. UTRs and Sub-Transmission'!I22 -> 3.63 | F24: =D24*E24 -> 894196.05 | H24: ='6. Historical Wholesale'!H24 -> 65072 | I24: ='5. UTRs and Sub-Transmission'!I24 -> 0.75 | J24: =H24*I24 -> 48804 | L24: ='6. Historical Wholesale'!L24 -> 250243 | M24: ='5. UTRs and Sub-Transmission'!I26 -> 1.85 | N24: =L24*M24 -> 462949.55 | P24: =J24+N24 -> 511753.55
B25: February | D25: ='6. Historical Wholesale'!D25 -> 233748 | E25: =E24 -> 3.63 | F25: 848505.24 | H25: ='6. Historical Wholesale'!H25 -> 60422 | I25: =I24 -> 0.75 | J25: 45316.5 | L25: ='6. Historical Wholesale'!L25 -> 238120 | M25: =M24 -> 1.85 | N25: 440522 | P25: 485838.5
B26: March | D26: ='6. Historical Wholesale'!D26 -> 222942 | E26: 3.63 | F26: 809279.46 | H26: ='6. Historical Wholesale'!H26 -> 66268 | I26: 0.75 | J26: 49701 | L26: ='6. Historical Wholesale'!L26 -> 230814 | M26: 1.85 | N26: 427005.9 | P26: 476706.9
B27: April | D27: ='6. Historical Wholesale'!D27 -> 189586 | E27: 3.63 | F27: 688197.18 | H27: ='6. Historical Wholesale'!H27 -> 61978 | I27: 0.75 | J27: 46483.5 | L27: ='6. Historical Wholesale'!L27 -> 214844 | M27: 1.85 | N27: 397461.4 | P27: 443944.9
B28: May | D28: ='6. Historical Wholesale'!D28 -> 205535 | E28: 3.63 | F28: 746092.05 | H28: ='6. Historical Wholesale'!H28 -> 48037 | I28: 0.75 | J28: 36027.75 | L28: ='6. Historical Wholesale'!L28 -> 213663 | M28: 1.85 | N28: 395276.55 | P28: 431304.3
B29: June | D29: ='6. Historical Wholesale'!D29 -> 240287 | E29: 3.63 | F29: 872241.81 | H29: ='6. Historical Wholesale'!H29 -> 64897 | I29: 0.75 | J29: 48672.75 | L29: ='6. Historical Wholesale'!L29 -> 250025 | M29: 1.85 | N29: 462546.25 | P29: 511219
B30: July | D30: ='6. Historical Wholesale'!D30 -> 280710 | E30: 3.63 | F30: 1018977.3 | H30: ='6. Historical Wholesale'!H30 -> 80755 | I30: 0.75 | J30: 60566.25 | L30: ='6. Historical Wholesale'!L30 -> 290221 | M30: 1.85 | N30: 536908.85 | P30: 597475.1
B31: August | D31: ='6. Historical Wholesale'!D31 -> 234201 | E31: 3.63 | F31: 850149.63 | H31: ='6. Historical Wholesale'!H31 -> 55260 | I31: 0.75 | J31: 41445 | L31: ='6. Historical Wholesale'!L31 -> 240916 | M31: 1.85 | N31: 445694.6 | P31: 487139.6
B32: September | D32: ='6. Historical Wholesale'!D32 -> 203012 | E32: 3.63 | F32: 736933.56 | H32: ='6. Historical Wholesale'!H32 -> 47431 | I32: 0.75 | J32: 35573.25 | L32: ='6. Historical Wholesale'!L32 -> 217375 | M32: 1.85 | N32: 402143.75 | P32: 437717
B33: October | D33: ='6. Historical Wholesale'!D33 -> 188985 | E33: 3.63 | F33: 686015.55 | H33: ='6. Historical Wholesale'!H33 -> 46883 | I33: 0.75 | J33: 35162.25 | L33: ='6. Historical Wholesale'!L33 -> 195335 | M33: 1.85 | N33: 361369.75 | P33: 396532
B34: November | D34: ='6. Historical Wholesale'!D34 -> 206373 | E34: 3.63 | F34: 749133.99 | H34: ='6. Historical Wholesale'!H34 -> 48944 | I34: 0.75 | J34: 36708 | L34: ='6. Historical Wholesale'!L34 -> 210097 | M34: 1.85 | N34: 388679.45 | P34: 425387.45
B35: December | D35: ='6. Historical Wholesale'!D35 -> 232118 | E35: 3.63 | F35: 842588.34 | H35: ='6. Historical Wholesale'!H35 -> 66304 | I35: 0.75 | J35: 49728 | L35: ='6. Historical Wholesale'!L35 -> 232118 | M35: 1.85 | N35: 429418.3 | P35: 479146.3
B37: Total | D37: =SUM(D24:D35) -> 2683832 | E37: =IF(D37<>0,F37/D37,0) -> 3.63 | F37: =SUM(F24:F35) -> 9742310.16 | H37: =SUM(H24:H35) -> 712251 | I37: =IF(H37<>0,J37/H37,0) -> 0.75 | J37: =SUM(J24:J35) -> 534188.25 | L37: =SUM(L24:L35) -> 2783771 | M37: =IF(L37<>0,N37/L37,0) -> 1.85 | N37: =SUM(N24:N35) -> 5149976.35 | P37: =SUM(P24:P35) -> 5684164.6
B39: Hydro One | D39: Network | H39: Line Connection | L39: Transformation Connection | P39: Total Line
B41: Month | D41: Units Billed | E41: Rate | F41: Amount | H41: Units Billed | I41: Rate | J41: Amount | L41: Units Billed | M41: Rate | N41: Amount | P41: Amount
B43: January | D43: ='6. Historical Wholesale'!D43 -> 185376 | E43: ='5. UTRs and Sub-Transmission'!I35+'5. UTRs and Sub-Transmission'!I49 -> 3.18 | F43: =D43*E43 -> 589495.68 | H43: ='6. Historical Wholesale'!H43 -> 155976 | I43: ='5. UTRs and Sub-Transmission'!I37+'5. UTRs and Sub-Transmission'!I51 -> 0.7 | J43: =H43*I43 -> 109183.2 | L43: ='6. Historical Wholesale'!L43 -> 186424 | M43: ='5. UTRs and Sub-Transmission'!I39 -> 1.63 | N43: =L43*M43 -> 303871.12 | P43: =J43+N43 -> 413054.32
B44: February | D44: ='6. Historical Wholesale'!D44 -> 166195 | E44: =E43 -> 3.18 | F44: 528500.1 | H44: ='6. Historical Wholesale'!H44 -> 138205 | I44: =I43 -> 0.7 | J44: 96743.5 | L44: ='6. Historical Wholesale'!L44 -> 167050 | M44: =M43 -> 1.63 | N44: 272291.5 | P44: 369035
B45: March | D45: ='6. Historical Wholesale'!D45 -> 156966 | E45: 3.18 | F45: 499151.88 | H45: ='6. Historical Wholesale'!H45 -> 127633 | I45: 0.7 | J45: 89343.1 | L45: ='6. Historical Wholesale'!L45 -> 158289 | M45: 1.63 | N45: 258011.07 | P45: 347354.17
B46: April | D46: ='6. Historical Wholesale'!D46 -> 141262 | E46: 3.18 | F46: 449213.16 | H46: ='6. Historical Wholesale'!H46 -> 123435 | I46: 0.7 | J46: 86404.5 | L46: ='6. Historical Wholesale'!L46 -> 149709 | M46: 1.63 | N46: 244025.67 | P46: 330430.17
B47: May | D47: ='6. Historical Wholesale'!D47 -> 205355 | E47: 3.18 | F47: 653028.9 | H47: ='6. Historical Wholesale'!H47 -> 165615 | I47: 0.7 | J47: 115930.5 | L47: ='6. Historical Wholesale'!L47 -> 205898 | M47: 1.63 | N47: 335613.74 | P47: 451544.24
B48: June | D48: ='6. Historical Wholesale'!D48 -> 197819 | E48: 3.18 | F48: 629064.42 | H48: ='6. Historical Wholesale'!H48 -> 157572 | I48: 0.7 | J48: 110300.4 | L48: ='6. Historical Wholesale'!L48 -> 197819 | M48: 1.63 | N48: 322444.97 | P48: 432745.37
B49: July | D49: ='6. Historical Wholesale'!D49 -> 232251 | E49: 3.18 | F49: 738558.18 | H49: ='6. Historical Wholesale'!H49 -> 167952 | I49: 0.7 | J49: 117566.4 | L49: ='6. Historical Wholesale'!L49 -> 194555 | M49: 1.63 | N49: 317124.65 | P49: 434691.05
B50: August | D50: ='6. Historical Wholesale'!D50 -> 206022 | E50: 3.18 | F50: 655149.96 | H50: ='6. Historical Wholesale'!H50 -> 141559 | I50: 0.7 | J50: 99091.3 | L50: ='6. Historical Wholesale'!L50 -> 164442 | M50: 1.63 | N50: 268040.46 | P50: 367131.76
B51: September | D51: ='6. Historical Wholesale'!D51 -> 173789 | E51: 3.18 | F51: 552649.02 | H51: ='6. Historical Wholesale'!H51 -> 130369 | I51: 0.7 | J51: 91258.3 | L51: ='6. Historical Wholesale'!L51 -> 145193 | M51: 1.63 | N51: 236664.59 | P51: 327922.89
B52: October | D52: ='6. Historical Wholesale'!D52 -> 163608 | E52: 3.18 | F52: 520273.44 | H52: ='6. Historical Wholesale'!H52 -> 118238 | I52: 0.7 | J52: 82766.6 | L52: ='6. Historical Wholesale'!L52 -> 134096 | M52: 1.63 | N52: 218576.48 | P52: 301343.08
B53: November | D53: ='6. Historical Wholesale'!D53 -> 191840 | E53: 3.18 | F53: 610051.2 | H53: ='6. Historical Wholesale'!H53 -> 147708 | I53: 0.7 | J53: 103395.6 | L53: ='6. Historical Wholesale'!L53 -> 163623 | M53: 1.63 | N53: 266705.49 | P53: 370101.09
B54: December | D54: ='6. Historical Wholesale'!D54 -> 206494 | E54: 3.18 | F54: 656650.92 | H54: ='6. Historical Wholesale'!H54 -> 160723 | I54: 0.7 | J54: 112506.1 | L54: ='6. Historical Wholesale'!L54 -> 176883 | M54: 1.63 | N54: 288319.29 | P54: 400825.39
B56: Total | D56: =SUM(D43:D54) -> 2226977 | E56: =IF(D56<>0,F56/D56,0) -> 3.18 | F56: =SUM(F43:F54) -> 7081786.86 | H56: =SUM(H43:H54) -> 1734985 | I56: =IF(H56<>0,J56/H56,0) -> 0.7 | J56: =SUM(J43:J54) -> 1214489.5 | L56: =SUM(L43:L54) -> 2043981 | M56: =IF(L56<>0,N56/L56,0) -> 1.63 | N56: =SUM(N43:N54) -> 3331689.03 | P56: =SUM(P43:P54) -> 4546178.53
B58: Total | D58: Network | H58: Line Connection | L58: Transformation Connection | P58: Total Line
B60: Month | D60: Units Billed | E60: Rate | F60: Amount | H60: Units Billed | I60: Rate | J60: Amount | L60: Units Billed | M60: Rate | N60: Amount | P60: Amount
B62: January | D62: =D24+D43 -> 431711 | E62: =IF(D62<>0,F62/D62,0) -> 3.436770733 | F62: =F24+F43 -> 1483691.73 | H62: =H24+H43 -> 221048 | I62: =IF(H62<>0,J62/H62,0) -> 0.7147189751 | J62: =J24+J43 -> 157987.2 | L62: =L24+L43 -> 436667 | M62: =IF(L62<>0,N62/L62,0) -> 1.75607653 | N62: =N24+N43 -> 766820.67 | P62: =J62+N62 -> 924807.87
B63: February | D63: 399943 | E63: 3.443003978 | F63: 1377005.34 | H63: 198627 | I63: 0.7152099161 | J63: 142060 | L63: 405170 | M63: 1.759294864 | N63: 712813.5 | P63: 854873.5
B64: March | D64: 379908 | E64: 3.444074197 | F64: 1308431.34 | H64: 193901 | I64: 0.7170881017 | J64: 139044.1 | L64: 389103 | M64: 1.760502926 | N64: 685016.97 | P64: 824061.07
B65: April | D65: 330848 | E65: 3.437863732 | F65: 1137410.34 | H65: 185413 | I65: 0.7167134991 | J65: 132888 | L65: 364553 | M65: 1.759653795 | N65: 641487.07 | P65: 774375.07
B66: May | D66: 410890 | E66: 3.405098567 | F66: 1399120.95 | H66: 213652 | I66: 0.7112418793 | J66: 151958.25 | L66: 419561 | M66: 1.742035818 | N66: 730890.29 | P66: 882848.54
B67: June | D67: 438106 | E67: 3.426810475 | F67: 1501306.23 | H67: 222469 | I67: 0.7145856277 | J67: 158973.15 | L67: 447844 | M67: 1.752822903 | N67: 784991.22 | P67: 943964.37
B68: July | D68: 512961 | E68: 3.426255563 | F68: 1757535.48 | H68: 248707 | I68: 0.7162349673 | J68: 178132.65 | L68: 484776 | M68: 1.761707469 | N68: 854033.5 | P68: 1032166.15
B69: August | D69: 440223 | E69: 3.419402417 | F69: 1505299.59 | H69: 196819 | I69: 0.7140382788 | J69: 140536.3 | L69: 405358 | M69: 1.760752372 | N69: 713735.06 | P69: 854271.36
B70: September | D70: 376801 | E70: 3.422449993 | F70: 1289582.58 | H70: 177800 | I70: 0.7133383015 | J70: 126831.55 | L70: 362568 | M70: 1.761899395 | N70: 638808.34 | P70: 765639.89
B71: October | D71: 352593 | E71: 3.421193813 | F71: 1206288.99 | H71: 165121 | I71: 0.7141965589 | J71: 117928.85 | L71: 329431 | M71: 1.760448258 | N71: 579946.23 | P71: 697875.08
B72: November | D72: 398213 | E72: 3.413211497 | F72: 1359185.19 | H72: 196652 | I72: 0.7124443179 | J72: 140103.6 | L72: 373720 | M72: 1.753679065 | N72: 655384.94 | P72: 795488.54
B73: December | D73: 438612 | E73: 3.418144647 | F73: 1499239.26 | H73: 227027 | I73: 0.7146026684 | J73: 162234.1 | L73: 409001 | M73: 1.754855343 | N73: 717737.59 | P73: 879971.69
B75: Total | D75: =SUM(D62:D73) -> 4910809 | E75: =IF(D75<>0,F75/D75,0) -> 3.425931862 | F75: =SUM(F62:F73) -> 16824097.02 | H75: =SUM(H62:H73) -> 2447236 | I75: =IF(H75<>0,J75/H75,0) -> 0.7145521519 | J75: =SUM(J62:J73) -> 1748677.75 | L75: =SUM(L62:L73) -> 4827752 | M75: =IF(L75<>0,N75/L75,0) -> 1.756856065 | N75: =SUM(N62:N73) -> 8481665.38 | P75: =SUM(P62:P73) -> 10230343.13

Sheet 9. Adj Network to Current WS
B13: The purpose of this sheet is to re-align the current RTS Network Rates to recover current wholesale network costs.
B22: Rate Class | D22: Unit | F22: Current RTSR-Network | H22: Loss Adjusted Billed kWh | J22: Loss Adjusted Billed kW | L22: Billed Amount | N22: Billed Amount % | P22: Current Wholesale Billing | R22: Proposed RTSR Network
B25: =IF('3. Rate Classes'!Q24=1,'3. Rate Classes'!C24, 0) -> Residential | D25: =IF(ISERROR(VLOOKUP($B25, '3. Rate Classes'!$C$24:$H$45,6,0)), "", VLOOKUP($B25, '3. Rate Classes'!$C$24:$H$45,6,0)) -> kWh | F25: =IF(ISERROR(VLOOKUP($B25,'3. Rate Classes'!$C$24:$N$45, 8,0)), "", VLOOKUP($B25,'3. Rate Classes'!$C$24:$N$45, 8,0)) -> 0.0062 | H25: =VLOOKUP('9. Adj Network to Current WS'!$B25, '4. RRR Data'!$B$27:$M$49,11,0) -> 950357422.3 | J25: =VLOOKUP('9. Adj Network to Current WS'!$B25, '4. RRR Data'!$B$27:$M$49,12,0) -> 0 | L25: =IF(F25="", "", IF(D25="kWh", F25*H25, F25*J25)) -> 5892216.018 | N25: =IF(ISERROR(L25/$L$49), "", L25/$L$49) -> 0.3746502584 | P25: =IF(ISERROR('7. Current Wholesale'!$F$75*N25), "", '7. Current Wholesale'!$F$75*N25) -> 5800623.515 | R25: =IF(D25="","",IF(D25="kWh",IF(H25<>0,P25/H25,),IF(J25<>0,P25/J25,0))) -> 0.006103623099
B26: =IF('3. Rate Classes'!Q25=1,'3. Rate Classes'!C25, 0) -> General Service Less Than 50 kW | D26: =IF(ISERROR(VLOOKUP($B26, '3. Rate Classes'!$C$24:$H$45,6,0)), "", VLOOKUP($B26, '3. Rate Classes'!$C$24:$H$45,6,0)) -> kWh | F26: =IF(ISERROR(VLOOKUP($B26,'3. Rate Classes'!$C$24:$N$45, 8,0)), "", VLOOKUP($B26,'3. Rate Classes'!$C$24:$N$45, 8,0)) -> 0.0057 | H26: =VLOOKUP('9. Adj Network to Current WS'!$B26, '4. RRR Data'!$B$27:$M$49,11,0) -> 303485217.7 | J26: =VLOOKUP('9. Adj Network to Current WS'!$B26, '4. RRR Data'!$B$27:$M$49,12,0) -> 0 | L26: =IF(F26="", "", IF(D26="kWh", F26*H26, F26*J26)) -> 1729865.741 | N26: =IF(ISERROR(L26/$L$49), "", L26/$L$49) -> 0.1099916644 | P26: =IF(ISERROR('7. Current Wholesale'!$F$75*N26), "", '7. Current Wholesale'!$F$75*N26) -> 1702975.564 | R26: =IF(D26="","",IF(D26="kWh",IF(H26<>0,P26/H26,),IF(J26<>0,P26/J26,0))) -> 0.00561139543
B27: =IF('3. Rate Classes'!Q26=1,'3. Rate Classes'!C26, 0) -> General Service 50 to 2,999 kW | D27: =IF(ISERROR(VLOOKUP($B27, '3. Rate Classes'!$C$24:$H$45,6,0)), "", VLOOKUP($B27, '3. Rate Classes'!$C$24:$H$45,6,0)) -> kW | F27: =IF(ISERROR(VLOOKUP($B27,'3. Rate Classes'!$C$24:$N$45, 8,0)), "", VLOOKUP($B27,'3. Rate Classes'!$C$24:$N$45, 8,0)) -> 2.7689 | H27: =VLOOKUP('9. Adj Network to Current WS'!$B27, '4. RRR Data'!$B$27:$M$49,11,0) -> 983615976 | J27: =VLOOKUP('9. Adj Network to Current WS'!$B27, '4. RRR Data'!$B$27:$M$49,12,0) -> 2348698 | L27: 6503309.892 | N27: 0.4135060093 | P27: =IF(ISERROR('7. Current Wholesale'!$F$75*N27), "", '7. Current Wholesale'!$F$75*N27) -> 6402218.142 | R27: 2.725858387
B28: =IF('3. Rate Classes'!Q27=1,'3. Rate Classes'!C27, 0) -> General Service 3,000 to 4,999 kW | D28: =IF(ISERROR(VLOOKUP($B28, '3. Rate Classes'!$C$24:$H$45,6,0)), "", VLOOKUP($B28, '3. Rate Classes'!$C$24:$H$45,6,0)) -> kW | F28: =IF(ISERROR(VLOOKUP($B28,'3. Rate Classes'!$C$24:$N$45, 8,0)), "", VLOOKUP($B28,'3. Rate Classes'!$C$24:$N$45, 8,0)) -> 3.0384 | H28: =VLOOKUP('9. Adj Network to Current WS'!$B28, '4. RRR Data'!$B$27:$M$49,11,0) -> 48838845 | J28: =VLOOKUP('9. Adj Network to Current WS'!$B28, '4. RRR Data'!$B$27:$M$49,12,0) -> 132193 | L28: 401655.2112 | N28: 0.02553881735 | P28: =IF(ISERROR('7. Current Wholesale'!$F$75*N28), "", '7. Current Wholesale'!$F$75*N28) -> 395411.6169 | R28: 2.991169101
B29: =IF('3. Rate Classes'!Q28=1,'3. Rate Classes'!C28, 0) -> Large Use | D29: =IF(ISERROR(VLOOKUP($B29, '3. Rate Classes'!$C$24:$H$45,6,0)), "", VLOOKUP($B29, '3. Rate Classes'!$C$24:$H$45,6,0)) -> kW | F29: =IF(ISERROR(VLOOKUP($B29,'3. Rate Classes'!$C$24:$N$45, 8,0)), "", VLOOKUP($B29,'3. Rate Classes'!$C$24:$N$45, 8,0)) -> 3.0384 | H29: =VLOOKUP('9. Adj Network to Current WS'!$B29, '4. RRR Data'!$B$27:$M$49,11,0) -> 199771107 | J29: =VLOOKUP('9. Adj Network to Current WS'!$B29, '4. RRR Data'!$B$27:$M$49,12,0) -> 350197 | L29: 1064038.565 | N29: 0.06765575499 | P29: =IF(ISERROR('7. Current Wholesale'!$F$75*N29), "", '7. Current Wholesale'!$F$75*N29) -> 1047498.446 | R29: 2.991169101
B30: =IF('3. Rate Classes'!Q29=1,'3. Rate Classes'!C29, 0) -> Unmetered Scattered Load | D30: =IF(ISERROR(VLOOKUP($B30, '3. Rate Classes'!$C$24:$H$45,6,0)), "", VLOOKUP($B30, '3. Rate Classes'!$C$24:$H$45,6,0)) -> kWh | F30: =IF(ISERROR(VLOOKUP($B30,'3. Rate Classes'!$C$24:$N$45, 8,0)), "", VLOOKUP($B30,'3. Rate Classes'!$C$24:$N$45, 8,0)) -> 0.0057 | H30: =VLOOKUP('9. Adj Network to Current WS'!$B30, '4. RRR Data'!$B$27:$M$49,11,0) -> 6119027.663 | J30: =VLOOKUP('9. Adj Network to Current WS'!$B30, '4. RRR Data'!$B$27:$M$49,12,0) -> 0 | L30: 34878.45768 | N30: 0.002217709456 | P30: =IF(ISERROR('7. Current Wholesale'!$F$75*N30), "", '7. Current Wholesale'!$F$75*N30) -> 34336.28386 | R30: 0.00561139543
B31: =IF('3. Rate Classes'!Q30=1,'3. Rate Classes'!C30, 0) -> Sentinel Lighting | D31: =IF(ISERROR(VLOOKUP($B31, '3. Rate Classes'!$C$24:$H$45,6,0)), "", VLOOKUP($B31, '3. Rate Classes'!$C$24:$H$45,6,0)) -> kW | F31: =IF(ISERROR(VLOOKUP($B31,'3. Rate Classes'!$C$24:$N$45, 8,0)), "", VLOOKUP($B31,'3. Rate Classes'!$C$24:$N$45, 8,0)) -> 1.7151 | H31: =VLOOKUP('9. Adj Network to Current WS'!$B31, '4. RRR Data'!$B$27:$M$49,11,0) -> 523767 | J31: =VLOOKUP('9. Adj Network to Current WS'!$B31, '4. RRR Data'!$B$27:$M$49,12,0) -> 1455 | L31: 2495.4705 | N31: 0.0001586718248 | P31: =IF(ISERROR('7. Current Wholesale'!$F$75*N31), "", '7. Current Wholesale'!$F$75*N31) -> 2456.679256 | R31: 1.688439351
B32: =IF('3. Rate Classes'!Q31=1,'3. Rate Classes'!C31, 0) -> Street Lighting | D32: =IF(ISERROR(VLOOKUP($B32, '3. Rate Classes'!$C$24:$H$45,6,0)), "", VLOOKUP($B32, '3. Rate Classes'!$C$24:$H$45,6,0)) -> kW | F32: =IF(ISERROR(VLOOKUP($B32,'3. Rate Classes'!$C$24:$N$45, 8,0)), "", VLOOKUP($B32,'3. Rate Classes'!$C$24:$N$45, 8,0)) -> 1.811 | H32: =VLOOKUP('9. Adj Network to Current WS'!$B32, '4. RRR Data'!$B$27:$M$49,11,0) -> 19480569 | J32: =VLOOKUP('9. Adj Network to Current WS'!$B32, '4. RRR Data'!$B$27:$M$49,12,0) -> 54547 | L32: 98784.617 | N32: 0.006281114299 | P32: =IF(ISERROR('7. Current Wholesale'!$F$75*N32), "", '7. Current Wholesale'!$F$75*N32) -> 97249.04358 | R32: 1.782848618
B33: =IF('3. Rate Classes'!Q32=1,'3. Rate Classes'!C32, 0) -> 0 | D33: =IF(ISERROR(VLOOKUP($B33, '3. Rate Classes'!$C$24:$H$45,6,0)), "", VLOOKUP($B33, '3. Rate Classes'!$C$24:$H$45,6,0)) ->  | F33: =IF(ISERROR(VLOOKUP($B33,'3. Rate Classes'!$C$24:$N$45, 8,0)), "", VLOOKUP($B33,'3. Rate Classes'!$C$24:$N$45, 8,0)) ->  | H33: =VLOOKUP('9. Adj Network to Current WS'!$B33, '4. RRR Data'!$B$27:$M$49,11,0) -> 0 | J33: =VLOOKUP('9. Adj Network to Current WS'!$B33, '4. RRR Data'!$B$27:$M$49,12,0) -> 0 | P33: =IF(ISERROR('7. Current Wholesale'!$F$75*N33), "", '7. Current Wholesale'!$F$75*N33) -> 
B34: =IF('3. Rate Classes'!Q33=1,'3. Rate Classes'!C33, 0) -> 0 | D34: =IF(ISERROR(VLOOKUP($B34, '3. Rate Classes'!$C$24:$H$45,6,0)), "", VLOOKUP($B34, '3. Rate Classes'!$C$24:$H$45,6,0)) ->  | F34: =IF(ISERROR(VLOOKUP($B34,'3. Rate Classes'!$C$24:$N$45, 8,0)), "", VLOOKUP($B34,'3. Rate Classes'!$C$24:$N$45, 8,0)) ->  | H34: =VLOOKUP('9. Adj Network to Current WS'!$B34, '4. RRR Data'!$B$27:$M$49,11,0) -> 0 | J34: =VLOOKUP('9. Adj Network to Current WS'!$B34, '4. RRR Data'!$B$27:$M$49,12,0) -> 0 | P34: =IF(ISERROR('7. Current Wholesale'!$F$75*N34), "", '7. Current Wholesale'!$F$75*N34) -> 
B35: =IF('3. Rate Classes'!Q34=1,'3. Rate Classes'!C34, 0) -> 0 | D35: =IF(ISERROR(VLOOKUP($B35, '3. Rate Classes'!$C$24:$H$45,6,0)), "", VLOOKUP($B35, '3. Rate Classes'!$C$24:$H$45,6,0)) ->  | F35: =IF(ISERROR(VLOOKUP($B35,'3. Rate Classes'!$C$24:$N$45, 8,0)), "", VLOOKUP($B35,'3. Rate Classes'!$C$24:$N$45, 8,0)) ->  | H35: =VLOOKUP('9. Adj Network to Current WS'!$B35, '4. RRR Data'!$B$27:$M$49,11,0) -> 0 | J35: =VLOOKUP('9. Adj Network to Current WS'!$B35, '4. RRR Data'!$B$27:$M$49,12,0) -> 0 | P35: =IF(ISERROR('7. Current Wholesale'!$F$75*N35), "", '7. Current Wholesale'!$F$75*N35) -> 
B36: =IF('3. Rate Classes'!Q35=1,'3. Rate Classes'!C35, 0) -> 0 | D36: =IF(ISERROR(VLOOKUP($B36, '3. Rate Classes'!$C$24:$H$45,6,0)), "", VLOOKUP($B36, '3. Rate Classes'!$C$24:$H$45,6,0)) ->  | F36: =IF(ISERROR(VLOOKUP($B36,'3. Rate Classes'!$C$24:$N$45, 8,0)), "", VLOOKUP($B36,'3. Rate Classes'!$C$24:$N$45, 8,0)) ->  | H36: =VLOOKUP('9. Adj Network to Current WS'!$B36, '4. RRR Data'!$B$27:$M$49,11,0) -> 0 | J36: =VLOOKUP('9. Adj Network to Current WS'!$B36, '4. RRR Data'!$B$27:$M$49,12,0) -> 0 | P36: =IF(ISERROR('7. Current Wholesale'!$F$75*N36), "", '7. Current Wholesale'!$F$75*N36) -> 
B37: =IF('3. Rate Classes'!Q36=1,'3. Rate Classes'!C36, 0) -> 0 | D37: =IF(ISERROR(VLOOKUP($B37, '3. Rate Classes'!$C$24:$H$45,6,0)), "", VLOOKUP($B37, '3. Rate Classes'!$C$24:$H$45,6,0)) ->  | F37: =IF(ISERROR(VLOOKUP($B37,'3. Rate Classes'!$C$24:$N$45, 8,0)), "", VLOOKUP($B37,'3. Rate Classes'!$C$24:$N$45, 8,0)) ->  | H37: =VLOOKUP('9. Adj Network to Current WS'!$B37, '4. RRR Data'!$B$27:$M$49,11,0) -> 0 | J37: =VLOOKUP('9. Adj Network to Current WS'!$B37, '4. RRR Data'!$B$27:$M$49,12,0) -> 0 | P37: =IF(ISERROR('7. Current Wholesale'!$F$75*N37), "", '7. Current Wholesale'!$F$75*N37) -> 
B38: =IF('3. Rate Classes'!Q37=1,'3. Rate Classes'!C37, 0) -> 0 | D38: =IF(ISERROR(VLOOKUP($B38, '3. Rate Classes'!$C$24:$H$45,6,0)), "", VLOOKUP($B38, '3. Rate Classes'!$C$24:$H$45,6,0)) ->  | F38: =IF(ISERROR(VLOOKUP($B38,'3. Rate Classes'!$C$24:$N$45, 8,0)), "", VLOOKUP($B38,'3. Rate Classes'!$C$24:$N$45, 8,0)) ->  | H38: =VLOOKUP('9. Adj Network to Current WS'!$B38, '4. RRR Data'!$B$27:$M$49,11,0) -> 0 | J38: =VLOOKUP('9. Adj Network to Current WS'!$B38, '4. RRR Data'!$B$27:$M$49,12,0) -> 0 | P38: =IF(ISERROR('7. Current Wholesale'!$F$75*N38), "", '7. Current Wholesale'!$F$75*N38) -> 
B39: =IF('3. Rate Classes'!Q38=1,'3. Rate Classes'!C38, 0) -> 0 | D39: =IF(ISERROR(VLOOKUP($B39, '3. Rate Classes'!$C$24:$H$45,6,0)), "", VLOOKUP($B39, '3. Rate Classes'!$C$24:$H$45,6,0)) ->  | F39: =IF(ISERROR(VLOOKUP($B39,'3. Rate Classes'!$C$24:$N$45, 8,0)), "", VLOOKUP($B39,'3. Rate Classes'!$C$24:$N$45, 8,0)) ->  | H39: =VLOOKUP('9. Adj Network to Current WS'!$B39, '4. RRR Data'!$B$27:$M$49,11,0) -> 0 | J39: =VLOOKUP('9. Adj Network to Current WS'!$B39, '4. RRR Data'!$B$27:$M$49,12,0) -> 0 | L39: =IF(F39="", "", IF(D39="kWh", F39*H39, F39*J39)) ->  | P39: =IF(ISERROR('7. Current Wholesale'!$F$75*N39), "", '7. Current Wholesale'!$F$75*N39) -> 
B40: =IF('3. Rate Classes'!Q39=1,'3. Rate Classes'!C39, 0) -> 0 | D40: =IF(ISERROR(VLOOKUP($B40, '3. Rate Classes'!$C$24:$H$45,6,0)), "", VLOOKUP($B40, '3. Rate Classes'!$C$24:$H$45,6,0)) ->  | F40: =IF(ISERROR(VLOOKUP($B40,'3. Rate Classes'!$C$24:$N$45, 8,0)), "", VLOOKUP($B40,'3. Rate Classes'!$C$24:$N$45, 8,0)) ->  | H40: =VLOOKUP('9. Adj Network to Current WS'!$B40, '4. RRR Data'!$B$27:$M$49,11,0) -> 0 | J40: =VLOOKUP('9. Adj Network to Current WS'!$B40, '4. RRR Data'!$B$27:$M$49,12,0) -> 0 | P40: =IF(ISERROR('7. Current Wholesale'!$F$75*N40), "", '7. Current Wholesale'!$F$75*N40) -> 
B41: =IF('3. Rate Classes'!Q40=1,'3. Rate Classes'!C40, 0) -> 0 | D41: =IF(ISERROR(VLOOKUP($B41, '3. Rate Classes'!$C$24:$H$45,6,0)), "", VLOOKUP($B41, '3. Rate Classes'!$C$24:$H$45,6,0)) ->  | F41: =IF(ISERROR(VLOOKUP($B41,'3. Rate Classes'!$C$24:$N$45, 8,0)), "", VLOOKUP($B41,'3. Rate Classes'!$C$24:$N$45, 8,0)) ->  | H41: =VLOOKUP('9. Adj Network to Current WS'!$B41, '4. RRR Data'!$B$27:$M$49,11,0) -> 0 | J41: =VLOOKUP('9. Adj Network to Current WS'!$B41, '4. RRR Data'!$B$27:$M$49,12,0) -> 0 | P41: =IF(ISERROR('7. Current Wholesale'!$F$75*N41), "", '7. Current Wholesale'!$F$75*N41) -> 
B42: =IF('3. Rate Classes'!Q41=1,'3. Rate Classes'!C41, 0) -> 0 | D42: =IF(ISERROR(VLOOKUP($B42, '3. Rate Classes'!$C$24:$H$45,6,0)), "", VLOOKUP($B42, '3. Rate Classes'!$C$24:$H$45,6,0)) ->  | F42: =IF(ISERROR(VLOOKUP($B42,'3. Rate Classes'!$C$24:$N$45, 8,0)), "", VLOOKUP($B42,'3. Rate Classes'!$C$24:$N$45, 8,0)) ->  | H42: =VLOOKUP('9. Adj Network to Current WS'!$B42, '4. RRR Data'!$B$27:$M$49,11,0) -> 0 | J42: =VLOOKUP('9. Adj Network to Current WS'!$B42, '4. RRR Data'!$B$27:$M$49,12,0) -> 0 | P42: =IF(ISERROR('7. Current Wholesale'!$F$75*N42), "", '7. Current Wholesale'!$F$75*N42) -> 
B43: =IF('3. Rate Classes'!Q42=1,'3. Rate Classes'!C42, 0) -> 0 | D43: =IF(ISERROR(VLOOKUP($B43, '3. Rate Classes'!$C$24:$H$45,6,0)), "", VLOOKUP($B43, '3. Rate Classes'!$C$24:$H$45,6,0)) ->  | F43: =IF(ISERROR(VLOOKUP($B43,'3. Rate Classes'!$C$24:$N$45, 8,0)), "", VLOOKUP($B43,'3. Rate Classes'!$C$24:$N$45, 8,0)) ->  | H43: =VLOOKUP('9. Adj Network to Current WS'!$B43, '4. RRR Data'!$B$27:$M$49,11,0) -> 0 | J43: =VLOOKUP('9. Adj Network to Current WS'!$B43, '4. RRR Data'!$B$27:$M$49,12,0) -> 0 | P43: =IF(ISERROR('7. Current Wholesale'!$F$75*N43), "", '7. Current Wholesale'!$F$75*N43) -> 
B44: =IF('3. Rate Classes'!Q43=1,'3. Rate Classes'!C43, 0) -> 0 | D44: =IF(ISERROR(VLOOKUP($B44, '3. Rate Classes'!$C$24:$H$45,6,0)), "", VLOOKUP($B44, '3. Rate Classes'!$C$24:$H$45,6,0)) ->  | F44: =IF(ISERROR(VLOOKUP($B44,'3. Rate Classes'!$C$24:$N$45, 8,0)), "", VLOOKUP($B44,'3. Rate Classes'!$C$24:$N$45, 8,0)) ->  | H44: =VLOOKUP('9. Adj Network to Current WS'!$B44, '4. RRR Data'!$B$27:$M$49,11,0) -> 0 | J44: =VLOOKUP('9. Adj Network to Current WS'!$B44, '4. RRR Data'!$B$27:$M$49,12,0) -> 0 | P44: =IF(ISERROR('7. Current Wholesale'!$F$75*N44), "", '7. Current Wholesale'!$F$75*N44) -> 
B45: =IF('3. Rate Classes'!Q44=1,'3. Rate Classes'!C44, 0) -> 0 | D45: =IF(ISERROR(VLOOKUP($B45, '3. Rate Classes'!$C$24:$H$45,6,0)), "", VLOOKUP($B45, '3. Rate Classes'!$C$24:$H$45,6,0)) ->  | F45: =IF(ISERROR(VLOOKUP($B45,'3. Rate Classes'!$C$24:$N$45, 8,0)), "", VLOOKUP($B45,'3. Rate Classes'!$C$24:$N$45, 8,0)) ->  | H45: =VLOOKUP('9. Adj Network to Current WS'!$B45, '4. RRR Data'!$B$27:$M$49,11,0) -> 0 | J45: =VLOOKUP('9. Adj Network to Current WS'!$B45, '4. RRR Data'!$B$27:$M$49,12,0) -> 0 | P45: =IF(ISERROR('7. Current Wholesale'!$F$75*N45), "", '7. Current Wholesale'!$F$75*N45) -> 
B46: =IF('3. Rate Classes'!Q45=1,'3. Rate Classes'!C45, 0) -> 0 | D46: =IF(ISERROR(VLOOKUP($B46, '3. Rate Classes'!$C$24:$H$45,6,0)), "", VLOOKUP($B46, '3. Rate Classes'!$C$24:$H$45,6,0)) ->  | F46: =IF(ISERROR(VLOOKUP($B46,'3. Rate Classes'!$C$24:$N$45, 8,0)), "", VLOOKUP($B46,'3. Rate Classes'!$C$24:$N$45, 8,0)) ->  | H46: =VLOOKUP('9. Adj Network to Current WS'!$B46, '4. RRR Data'!$B$27:$M$49,11,0) -> 0 | J46: =VLOOKUP('9. Adj Network to Current WS'!$B46, '4. RRR Data'!$B$27:$M$49,12,0) -> 0 | P46: =IF(ISERROR('7. Current Wholesale'!$F$75*N46), "", '7. Current Wholesale'!$F$75*N46) -> 
L49: =SUM(L25:L46) -> 15727243.97

Sheet 10. Adj Conn. to Current WS
B13: The purpose of this sheet is to re-align the current RTS Connection Rates to recover current wholesale connection costs.
B22: Rate Class | D22: Unit | F22: Current RTSR-Connection | H22: Loss Adjusted Billed kWh | J22: Loss Adjusted Billed kW | L22: Billed Amount | N22: Billed Amount % | P22: Current Wholesale Billing | R22: Proposed RTSR Connection
B25: =IF('3. Rate Classes'!Q24=1,'3. Rate Classes'!C24, 0) -> Residential | D25: =IF(ISERROR(VLOOKUP($B25, '3. Rate Classes'!$C$24:$H$45,6,0)), "", VLOOKUP($B25, '3. Rate Classes'!$C$24:$H$45,6,0)) -> kWh | F25: =IF(ISERROR(VLOOKUP($B25,'3. Rate Classes'!$C$24:$N$45, 11,0)), "", VLOOKUP($B25,'3. Rate Classes'!$C$24:$N$45, 11,0)) -> 0.0041 | H25: =VLOOKUP('9. Adj Network to Current WS'!$B25, '4. RRR Data'!$B$27:$M$49,11,0) -> 950357422.3 | J25: =VLOOKUP('9. Adj Network to Current WS'!$B25, '4. RRR Data'!$B$27:$M$49,12,0) -> 0 | L25: =IF(F25="", "", IF(D25="kWh", F25*H25, F25*J25)) -> 3896465.431 | N25: =IF(ISERROR(L25/$L$49), "", L25/$L$49) -> 0.3818382226 | P25: =IF(ISERROR('7. Current Wholesale'!$P$75*N25), "", '7. Current Wholesale'!$P$75*N25) -> 3789353.648 | R25: =IF(D25="","",IF(D25="kWh",IF(H25<>0,P25/H25,),IF(J25<>0,P25/J25,0))) -> 0.003987293158
B26: =IF('3. Rate Classes'!Q25=1,'3. Rate Classes'!C25, 0) -> General Service Less Than 50 kW | D26: =IF(ISERROR(VLOOKUP($B26, '3. Rate Classes'!$C$24:$H$45,6,0)), "", VLOOKUP($B26, '3. Rate Classes'!$C$24:$H$45,6,0)) -> kWh | F26: =IF(ISERROR(VLOOKUP($B26,'3. Rate Classes'!$C$24:$N$45, 11,0)), "", VLOOKUP($B26,'3. Rate Classes'!$C$24:$N$45, 11,0)) -> 0.0037 | H26: =VLOOKUP('9. Adj Network to Current WS'!$B26, '4. RRR Data'!$B$27:$M$49,11,0) -> 303485217.7 | J26: =VLOOKUP('9. Adj Network to Current WS'!$B26, '4. RRR Data'!$B$27:$M$49,12,0) -> 0 | L26: 1122895.305 | N26: 0.1100393049 | P26: =IF(ISERROR('7. Current Wholesale'!$P$75*N26), "", '7. Current Wholesale'!$P$75*N26) -> 1092027.505 | R26: 0.003598288947
B27: =IF('3. Rate Classes'!Q26=1,'3. Rate Classes'!C26, 0) -> General Service 50 to 2,999 kW | D27: =IF(ISERROR(VLOOKUP($B27, '3. Rate Classes'!$C$24:$H$45,6,0)), "", VLOOKUP($B27, '3. Rate Classes'!$C$24:$H$45,6,0)) -> kW | F27: =IF(ISERROR(VLOOKUP($B27,'3. Rate Classes'!$C$24:$N$45, 11,0)), "", VLOOKUP($B27,'3. Rate Classes'!$C$24:$N$45, 11,0)) -> 1.7703 | H27: =VLOOKUP('9. Adj Network to Current WS'!$B27, '4. RRR Data'!$B$27:$M$49,11,0) -> 983615976 | J27: =VLOOKUP('9. Adj Network to Current WS'!$B27, '4. RRR Data'!$B$27:$M$49,12,0) -> 2348698 | L27: 4157900.069 | N27: 0.4074577846 | P27: =IF(ISERROR('7. Current Wholesale'!$P$75*N27), "", '7. Current Wholesale'!$P$75*N27) -> 4043601.585 | R27: 1.721635385
B28: =IF('3. Rate Classes'!Q27=1,'3. Rate Classes'!C27, 0) -> General Service 3,000 to 4,999 kW | D28: =IF(ISERROR(VLOOKUP($B28, '3. Rate Classes'!$C$24:$H$45,6,0)), "", VLOOKUP($B28, '3. Rate Classes'!$C$24:$H$45,6,0)) -> kW | F28: =IF(ISERROR(VLOOKUP($B28,'3. Rate Classes'!$C$24:$N$45, 11,0)), "", VLOOKUP($B28,'3. Rate Classes'!$C$24:$N$45, 11,0)) -> 1.9484 | H28: =VLOOKUP('9. Adj Network to Current WS'!$B28, '4. RRR Data'!$B$27:$M$49,11,0) -> 48838845 | J28: =VLOOKUP('9. Adj Network to Current WS'!$B28, '4. RRR Data'!$B$27:$M$49,12,0) -> 132193 | L28: 257564.8412 | N28: 0.02524033715 | P28: =IF(ISERROR('7. Current Wholesale'!$P$75*N28), "", '7. Current Wholesale'!$P$75*N28) -> 250484.5193 | R28: 1.894839509
B29: =IF('3. Rate Classes'!Q28=1,'3. Rate Classes'!C28, 0) -> Large Use | D29: =IF(ISERROR(VLOOKUP($B29, '3. Rate Classes'!$C$24:$H$45,6,0)), "", VLOOKUP($B29, '3. Rate Classes'!$C$24:$H$45,6,0)) -> kW | F29: =IF(ISERROR(VLOOKUP($B29,'3. Rate Classes'!$C$24:$N$45, 11,0)), "", VLOOKUP($B29,'3. Rate Classes'!$C$24:$N$45, 11,0)) -> 1.9484 | H29: =VLOOKUP('9. Adj Network to Current WS'!$B29, '4. RRR Data'!$B$27:$M$49,11,0) -> 199771107 | J29: =VLOOKUP('9. Adj Network to Current WS'!$B29, '4. RRR Data'!$B$27:$M$49,12,0) -> 350197 | L29: 682323.8348 | N29: 0.06686504088 | P29: =IF(ISERROR('7. Current Wholesale'!$P$75*N29), "", '7. Current Wholesale'!$P$75*N29) -> 663567.1117 | R29: 1.894839509
B30: =IF('3. Rate Classes'!Q29=1,'3. Rate Classes'!C29, 0) -> Unmetered Scattered Load | D30: =IF(ISERROR(VLOOKUP($B30, '3. Rate Classes'!$C$24:$H$45,6,0)), "", VLOOKUP($B30, '3. Rate Classes'!$C$24:$H$45,6,0)) -> kWh | F30: =IF(ISERROR(VLOOKUP($B30,'3. Rate Classes'!$C$24:$N$45, 11,0)), "", VLOOKUP($B30,'3. Rate Classes'!$C$24:$N$45, 11,0)) -> 0.0037 | H30: =VLOOKUP('9. Adj Network to Current WS'!$B30, '4. RRR Data'!$B$27:$M$49,11,0) -> 6119027.663 | J30: =VLOOKUP('9. Adj Network to Current WS'!$B30, '4. RRR Data'!$B$27:$M$49,12,0) -> 0 | L30: 22640.40235 | N30: 0.002218670009 | P30: =IF(ISERROR('7. Current Wholesale'!$P$75*N30), "", '7. Current Wholesale'!$P$75*N30) -> 22018.02961 | R30: 0.003598288947
B31: =IF('3. Rate Classes'!Q30=1,'3. Rate Classes'!C30, 0) -> Sentinel Lighting | D31: =IF(ISERROR(VLOOKUP($B31, '3. Rate Classes'!$C$24:$H$45,6,0)), "", VLOOKUP($B31, '3. Rate Classes'!$C$24:$H$45,6,0)) -> kW | F31: =IF(ISERROR(VLOOKUP($B31,'3. Rate Classes'!$C$24:$N$45, 11,0)), "", VLOOKUP($B31,'3. Rate Classes'!$C$24:$N$45, 11,0)) -> 1.098 | H31: =VLOOKUP('9. Adj Network to Current WS'!$B31, '4. RRR Data'!$B$27:$M$49,11,0) -> 523767 | J31: =VLOOKUP('9. Adj Network to Current WS'!$B31, '4. RRR Data'!$B$27:$M$49,12,0) -> 1455 | L31: 1597.59 | N31: 0.0001565575101 | P31: =IF(ISERROR('7. Current Wholesale'!$P$75*N31), "", '7. Current Wholesale'!$P$75*N31) -> 1553.673092 | R31: 1.067816558
B32: =IF('3. Rate Classes'!Q31=1,'3. Rate Classes'!C31, 0) -> Street Lighting | D32: =IF(ISERROR(VLOOKUP($B32, '3. Rate Classes'!$C$24:$H$45,6,0)), "", VLOOKUP($B32, '3. Rate Classes'!$C$24:$H$45,6,0)) -> kW | F32: =IF(ISERROR(VLOOKUP($B32,'3. Rate Classes'!$C$24:$N$45, 11,0)), "", VLOOKUP($B32,'3. Rate Classes'!$C$24:$N$45, 11,0)) -> 1.1569 | H32: =VLOOKUP('9. Adj Network to Current WS'!$B32, '4. RRR Data'!$B$27:$M$49,11,0) -> 19480569 | J32: =VLOOKUP('9. Adj Network to Current WS'!$B32, '4. RRR Data'!$B$27:$M$49,12,0) -> 54547 | L32: 63105.4243 | N32: 0.006184082338 | P32: =IF(ISERROR('7. Current Wholesale'!$P$75*N32), "", '7. Current Wholesale'!$P$75*N32) -> 61370.6894 | R32: 1.125097428
B33: =IF('3. Rate Classes'!Q32=1,'3. Rate Classes'!C32, 0) -> 0 | D33: =IF(ISERROR(VLOOKUP($B33, '3. Rate Classes'!$C$24:$H$45,6,0)), "", VLOOKUP($B33, '3. Rate Classes'!$C$24:$H$45,6,0)) ->  | F33: =IF(ISERROR(VLOOKUP($B33,'3. Rate Classes'!$C$24:$N$45, 11,0)), "", VLOOKUP($B33,'3. Rate Classes'!$C$24:$N$45, 11,0)) ->  | H33: =VLOOKUP('9. Adj Network to Current WS'!$B33, '4. RRR Data'!$B$27:$M$49,11,0) -> 0 | J33: =VLOOKUP('9. Adj Network to Current WS'!$B33, '4. RRR Data'!$B$27:$M$49,12,0) -> 0 | P33: =IF(ISERROR('7. Current Wholesale'!$P$75*N33), "", '7. Current Wholesale'!$P$75*N33) -> 
B34: =IF('3. Rate Classes'!Q33=1,'3. Rate Classes'!C33, 0) -> 0 | D34: =IF(ISERROR(VLOOKUP($B34, '3. Rate Classes'!$C$24:$H$45,6,0)), "", VLOOKUP($B34, '3. Rate Classes'!$C$24:$H$45,6,0)) ->  | F34: =IF(ISERROR(VLOOKUP($B34,'3. Rate Classes'!$C$24:$N$45, 11,0)), "", VLOOKUP($B34,'3. Rate Classes'!$C$24:$N$45, 11,0)) ->  | H34: =VLOOKUP('9. Adj Network to Current WS'!$B34, '4. RRR Data'!$B$27:$M$49,11,0) -> 0 | J34: =VLOOKUP('9. Adj Network to Current WS'!$B34, '4. RRR Data'!$B$27:$M$49,12,0) -> 0 | P34: =IF(ISERROR('7. Current Wholesale'!$P$75*N34), "", '7. Current Wholesale'!$P$75*N34) -> 
B35: =IF('3. Rate Classes'!Q34=1,'3. Rate Classes'!C34, 0) -> 0 | D35: =IF(ISERROR(VLOOKUP($B35, '3. Rate Classes'!$C$24:$H$45,6,0)), "", VLOOKUP($B35, '3. Rate Classes'!$C$24:$H$45,6,0)) ->  | F35: =IF(ISERROR(VLOOKUP($B35,'3. Rate Classes'!$C$24:$N$45, 11,0)), "", VLOOKUP($B35,'3. Rate Classes'!$C$24:$N$45, 11,0)) ->  | H35: =VLOOKUP('9. Adj Network to Current WS'!$B35, '4. RRR Data'!$B$27:$M$49,11,0) -> 0 | J35: =VLOOKUP('9. Adj Network to Current WS'!$B35, '4. RRR Data'!$B$27:$M$49,12,0) -> 0 | P35: =IF(ISERROR('7. Current Wholesale'!$P$75*N35), "", '7. Current Wholesale'!$P$75*N35) -> 
B36: =IF('3. Rate Classes'!Q35=1,'3. Rate Classes'!C35, 0) -> 0 | D36: =IF(ISERROR(VLOOKUP($B36, '3. Rate Classes'!$C$24:$H$45,6,0)), "", VLOOKUP($B36, '3. Rate Classes'!$C$24:$H$45,6,0)) ->  | F36: =IF(ISERROR(VLOOKUP($B36,'3. Rate Classes'!$C$24:$N$45, 11,0)), "", VLOOKUP($B36,'3. Rate Classes'!$C$24:$N$45, 11,0)) ->  | H36: =VLOOKUP('9. Adj Network to Current WS'!$B36, '4. RRR Data'!$B$27:$M$49,11,0) -> 0 | J36: =VLOOKUP('9. Adj Network to Current WS'!$B36, '4. RRR Data'!$B$27:$M$49,12,0) -> 0 | P36: =IF(ISERROR('7. Current Wholesale'!$P$75*N36), "", '7. Current Wholesale'!$P$75*N36) -> 
B37: =IF('3. Rate Classes'!Q36=1,'3. Rate Classes'!C36, 0) -> 0 | D37: =IF(ISERROR(VLOOKUP($B37, '3. Rate Classes'!$C$24:$H$45,6,0)), "", VLOOKUP($B37, '3. Rate Classes'!$C$24:$H$45,6,0)) ->  | F37: =IF(ISERROR(VLOOKUP($B37,'3. Rate Classes'!$C$24:$N$45, 11,0)), "", VLOOKUP($B37,'3. Rate Classes'!$C$24:$N$45, 11,0)) ->  | H37: =VLOOKUP('9. Adj Network to Current WS'!$B37, '4. RRR Data'!$B$27:$M$49,11,0) -> 0 | J37: =VLOOKUP('9. Adj Network to Current WS'!$B37, '4. RRR Data'!$B$27:$M$49,12,0) -> 0 | P37: =IF(ISERROR('7. Current Wholesale'!$P$75*N37), "", '7. Current Wholesale'!$P$75*N37) -> 
B38: =IF('3. Rate Classes'!Q37=1,'3. Rate Classes'!C37, 0) -> 0 | D38: =IF(ISERROR(VLOOKUP($B38, '3. Rate Classes'!$C$24:$H$45,6,0)), "", VLOOKUP($B38, '3. Rate Classes'!$C$24:$H$45,6,0)) ->  | F38: =IF(ISERROR(VLOOKUP($B38,'3. Rate Classes'!$C$24:$N$45, 11,0)), "", VLOOKUP($B38,'3. Rate Classes'!$C$24:$N$45, 11,0)) ->  | H38: =VLOOKUP('9. Adj Network to Current WS'!$B38, '4. RRR Data'!$B$27:$M$49,11,0) -> 0 | J38: =VLOOKUP('9. Adj Network to Current WS'!$B38, '4. RRR Data'!$B$27:$M$49,12,0) -> 0 | P38: =IF(ISERROR('7. Current Wholesale'!$P$75*N38), "", '7. Current Wholesale'!$P$75*N38) -> 
B39: =IF('3. Rate Classes'!Q38=1,'3. Rate Classes'!C38, 0) -> 0 | D39: =IF(ISERROR(VLOOKUP($B39, '3. Rate Classes'!$C$24:$H$45,6,0)), "", VLOOKUP($B39, '3. Rate Classes'!$C$24:$H$45,6,0)) ->  | F39: =IF(ISERROR(VLOOKUP($B39,'3. Rate Classes'!$C$24:$N$45, 11,0)), "", VLOOKUP($B39,'3. Rate Classes'!$C$24:$N$45, 11,0)) ->  | H39: =VLOOKUP('9. Adj Network to Current WS'!$B39, '4. RRR Data'!$B$27:$M$49,11,0) -> 0 | J39: =VLOOKUP('9. Adj Network to Current WS'!$B39, '4. RRR Data'!$B$27:$M$49,12,0) -> 0 | P39: =IF(ISERROR('7. Current Wholesale'!$P$75*N39), "", '7. Current Wholesale'!$P$75*N39) -> 
B40: =IF('3. Rate Classes'!Q39=1,'3. Rate Classes'!C39, 0) -> 0 | D40: =IF(ISERROR(VLOOKUP($B40, '3. Rate Classes'!$C$24:$H$45,6,0)), "", VLOOKUP($B40, '3. Rate Classes'!$C$24:$H$45,6,0)) ->  | F40: =IF(ISERROR(VLOOKUP($B40,'3. Rate Classes'!$C$24:$N$45, 11,0)), "", VLOOKUP($B40,'3. Rate Classes'!$C$24:$N$45, 11,0)) ->  | H40: =VLOOKUP('9. Adj Network to Current WS'!$B40, '4. RRR Data'!$B$27:$M$49,11,0) -> 0 | J40: =VLOOKUP('9. Adj Network to Current WS'!$B40, '4. RRR Data'!$B$27:$M$49,12,0) -> 0 | P40: =IF(ISERROR('7. Current Wholesale'!$P$75*N40), "", '7. Current Wholesale'!$P$75*N40) -> 
B41: =IF('3. Rate Classes'!Q40=1,'3. Rate Classes'!C40, 0) -> 0 | D41: =IF(ISERROR(VLOOKUP($B41, '3. Rate Classes'!$C$24:$H$45,6,0)), "", VLOOKUP($B41, '3. Rate Classes'!$C$24:$H$45,6,0)) ->  | F41: =IF(ISERROR(VLOOKUP($B41,'3. Rate Classes'!$C$24:$N$45, 11,0)), "", VLOOKUP($B41,'3. Rate Classes'!$C$24:$N$45, 11,0)) ->  | H41: =VLOOKUP('9. Adj Network to Current WS'!$B41, '4. RRR Data'!$B$27:$M$49,11,0) -> 0 | J41: =VLOOKUP('9. Adj Network to Current WS'!$B41, '4. RRR Data'!$B$27:$M$49,12,0) -> 0 | P41: =IF(ISERROR('7. Current Wholesale'!$P$75*N41), "", '7. Current Wholesale'!$P$75*N41) -> 
B42: =IF('3. Rate Classes'!Q41=1,'3. Rate Classes'!C41, 0) -> 0 | D42: =IF(ISERROR(VLOOKUP($B42, '3. Rate Classes'!$C$24:$H$45,6,0)), "", VLOOKUP($B42, '3. Rate Classes'!$C$24:$H$45,6,0)) ->  | F42: =IF(ISERROR(VLOOKUP($B42,'3. Rate Classes'!$C$24:$N$45, 11,0)), "", VLOOKUP($B42,'3. Rate Classes'!$C$24:$N$45, 11,0)) ->  | H42: =VLOOKUP('9. Adj Network to Current WS'!$B42, '4. RRR Data'!$B$27:$M$49,11,0) -> 0 | J42: =VLOOKUP('9. Adj Network to Current WS'!$B42, '4. RRR Data'!$B$27:$M$49,12,0) -> 0 | P42: =IF(ISERROR('7. Current Wholesale'!$P$75*N42), "", '7. Current Wholesale'!$P$75*N42) -> 
B43: =IF('3. Rate Classes'!Q42=1,'3. Rate Classes'!C42, 0) -> 0 | D43: =IF(ISERROR(VLOOKUP($B43, '3. Rate Classes'!$C$24:$H$45,6,0)), "", VLOOKUP($B43, '3. Rate Classes'!$C$24:$H$45,6,0)) ->  | F43: =IF(ISERROR(VLOOKUP($B43,'3. Rate Classes'!$C$24:$N$45, 11,0)), "", VLOOKUP($B43,'3. Rate Classes'!$C$24:$N$45, 11,0)) ->  | H43: =VLOOKUP('9. Adj Network to Current WS'!$B43, '4. RRR Data'!$B$27:$M$49,11,0) -> 0 | J43: =VLOOKUP('9. Adj Network to Current WS'!$B43, '4. RRR Data'!$B$27:$M$49,12,0) -> 0 | P43: =IF(ISERROR('7. Current Wholesale'!$P$75*N43), "", '7. Current Wholesale'!$P$75*N43) -> 
B44: =IF('3. Rate Classes'!Q43=1,'3. Rate Classes'!C43, 0) -> 0 | D44: =IF(ISERROR(VLOOKUP($B44, '3. Rate Classes'!$C$24:$H$45,6,0)), "", VLOOKUP($B44, '3. Rate Classes'!$C$24:$H$45,6,0)) ->  | F44: =IF(ISERROR(VLOOKUP($B44,'3. Rate Classes'!$C$24:$N$45, 11,0)), "", VLOOKUP($B44,'3. Rate Classes'!$C$24:$N$45, 11,0)) ->  | H44: =VLOOKUP('9. Adj Network to Current WS'!$B44, '4. RRR Data'!$B$27:$M$49,11,0) -> 0 | J44: =VLOOKUP('9. Adj Network to Current WS'!$B44, '4. RRR Data'!$B$27:$M$49,12,0) -> 0 | P44: =IF(ISERROR('7. Current Wholesale'!$P$75*N44), "", '7. Current Wholesale'!$P$75*N44) -> 
B45: =IF('3. Rate Classes'!Q44=1,'3. Rate Classes'!C44, 0) -> 0 | D45: =IF(ISERROR(VLOOKUP($B45, '3. Rate Classes'!$C$24:$H$45,6,0)), "", VLOOKUP($B45, '3. Rate Classes'!$C$24:$H$45,6,0)) ->  | F45: =IF(ISERROR(VLOOKUP($B45,'3. Rate Classes'!$C$24:$N$45, 11,0)), "", VLOOKUP($B45,'3. Rate Classes'!$C$24:$N$45, 11,0)) ->  | H45: =VLOOKUP('9. Adj Network to Current WS'!$B45, '4. RRR Data'!$B$27:$M$49,11,0) -> 0 | J45: =VLOOKUP('9. Adj Network to Current WS'!$B45, '4. RRR Data'!$B$27:$M$49,12,0) -> 0 | P45: =IF(ISERROR('7. Current Wholesale'!$P$75*N45), "", '7. Current Wholesale'!$P$75*N45) -> 
B46: =IF('3. Rate Classes'!Q45=1,'3. Rate Classes'!C45, 0) -> 0 | D46: =IF(ISERROR(VLOOKUP($B46, '3. Rate Classes'!$C$24:$H$45,6,0)), "", VLOOKUP($B46, '3. Rate Classes'!$C$24:$H$45,6,0)) ->  | F46: =IF(ISERROR(VLOOKUP($B46,'3. Rate Classes'!$C$24:$N$45, 11,0)), "", VLOOKUP($B46,'3. Rate Classes'!$C$24:$N$45, 11,0)) ->  | H46: =VLOOKUP('9. Adj Network to Current WS'!$B46, '4. RRR Data'!$B$27:$M$49,11,0) -> 0 | J46: =VLOOKUP('9. Adj Network to Current WS'!$B46, '4. RRR Data'!$B$27:$M$49,12,0) -> 0 | P46: =IF(ISERROR('7. Current Wholesale'!$P$75*N46), "", '7. Current Wholesale'!$P$75*N46) -> 
L49: =SUM(L25:L46) -> 10204492.9

Sheet 11. Adj Network to Forecast WS
B13: The purpose of this sheet is to update the re-align RTS Network Rates to recover forecast wholesale network costs.
B22: Rate Class | D22: Unit | F22: Adjusted RTSR-Network | H22: Loss Adjusted Billed kWh | J22: Loss Adjusted Billed kW | L22: Billed Amount | N22: Billed Amount % | P22: Forecast Wholesale Billing | R22: Proposed RTSR Network
B25: =IF('3. Rate Classes'!Q24=1,'3. Rate Classes'!C24, 0) -> Residential | D25: =IF(ISERROR(VLOOKUP($B25, '3. Rate Classes'!$C$24:$H$45,6,0)), "", VLOOKUP($B25, '3. Rate Classes'!$C$24:$H$45,6,0)) -> kWh | F25: =VLOOKUP($B25, '9. Adj Network to Current WS'!$B$25:$R$47, 17,0) -> 0.006103623099 | H25: =VLOOKUP('9. Adj Network to Current WS'!$B25, '4. RRR Data'!$B$27:$M$49,11,0) -> 950357422.3 | J25: =VLOOKUP('9. Adj Network to Current WS'!$B25, '4. RRR Data'!$B$27:$M$49,12,0) -> 0 | L25: =IF(F25="", "", IF(D25="kWh", F25*H25, F25*J25)) -> 5800623.515 | N25: =IF(ISERROR(L25/$L$49), "", L25/$L$49) -> 0.3746502584 | P25: =IF(ISERROR('8. Forecast Wholesale'!$F$75*N25), "", '8. Forecast Wholesale'!$F$75*N25) -> 6303152.296 | R25: =IF(D25="","",IF(D25="kWh",IF(H25<>0,P25/H25,),IF(J25<>0,P25/J25,0))) -> 0.006632401819
B26: =IF('3. Rate Classes'!Q25=1,'3. Rate Classes'!C25, 0) -> General Service Less Than 50 kW | D26: =IF(ISERROR(VLOOKUP($B26, '3. Rate Classes'!$C$24:$H$45,6,0)), "", VLOOKUP($B26, '3. Rate Classes'!$C$24:$H$45,6,0)) -> kWh | F26: =VLOOKUP($B26, '9. Adj Network to Current WS'!$B$25:$R$47, 17,0) -> 0.00561139543 | H26: =VLOOKUP('9. Adj Network to Current WS'!$B26, '4. RRR Data'!$B$27:$M$49,11,0) -> 303485217.7 | J26: =VLOOKUP('9. Adj Network to Current WS'!$B26, '4. RRR Data'!$B$27:$M$49,12,0) -> 0 | L26: 1702975.564 | N26: 0.1099916644 | P26: =IF(ISERROR('8. Forecast Wholesale'!$F$75*N26), "", '8. Forecast Wholesale'!$F$75*N26) -> 1850510.433 | R26: 0.006097530704
B27: =IF('3. Rate Classes'!Q26=1,'3. Rate Classes'!C26, 0) -> General Service 50 to 2,999 kW | D27: =IF(ISERROR(VLOOKUP($B27, '3. Rate Classes'!$C$24:$H$45,6,0)), "", VLOOKUP($B27, '3. Rate Classes'!$C$24:$H$45,6,0)) -> kW | F27: =VLOOKUP($B27, '9. Adj Network to Current WS'!$B$25:$R$47, 17,0) -> 2.725858387 | H27: =VLOOKUP('9. Adj Network to Current WS'!$B27, '4. RRR Data'!$B$27:$M$49,11,0) -> 983615976 | J27: =VLOOKUP('9. Adj Network to Current WS'!$B27, '4. RRR Data'!$B$27:$M$49,12,0) -> 2348698 | L27: 6402218.142 | N27: 0.4135060093 | P27: =IF(ISERROR('8. Forecast Wholesale'!$F$75*N27), "", '8. Forecast Wholesale'!$F$75*N27) -> 6956865.219 | R27: 2.962009257
B28: =IF('3. Rate Classes'!Q27=1,'3. Rate Classes'!C27, 0) -> General Service 3,000 to 4,999 kW | D28: =IF(ISERROR(VLOOKUP($B28, '3. Rate Classes'!$C$24:$H$45,6,0)), "", VLOOKUP($B28, '3. Rate Classes'!$C$24:$H$45,6,0)) -> kW | F28: =VLOOKUP($B28, '9. Adj Network to Current WS'!$B$25:$R$47, 17,0) -> 2.991169101 | H28: =VLOOKUP('9. Adj Network to Current WS'!$B28, '4. RRR Data'!$B$27:$M$49,11,0) -> 48838845 | J28: =VLOOKUP('9. Adj Network to Current WS'!$B28, '4. RRR Data'!$B$27:$M$49,12,0) -> 132193 | L28: 395411.6169 | N28: 0.02553881735 | P28: =IF(ISERROR('8. Forecast Wholesale'!$F$75*N28), "", '8. Forecast Wholesale'!$F$75*N28) -> 429667.5408 | R28: 3.250304788
B29: =IF('3. Rate Classes'!Q28=1,'3. Rate Classes'!C28, 0) -> Large Use | D29: =IF(ISERROR(VLOOKUP($B29, '3. Rate Classes'!$C$24:$H$45,6,0)), "", VLOOKUP($B29, '3. Rate Classes'!$C$24:$H$45,6,0)) -> kW | F29: =VLOOKUP($B29, '9. Adj Network to Current WS'!$B$25:$R$47, 17,0) -> 2.991169101 | H29: =VLOOKUP('9. Adj Network to Current WS'!$B29, '4. RRR Data'!$B$27:$M$49,11,0) -> 199771107 | J29: =VLOOKUP('9. Adj Network to Current WS'!$B29, '4. RRR Data'!$B$27:$M$49,12,0) -> 350197 | L29: 1047498.446 | N29: 0.06765575499 | P29: =IF(ISERROR('8. Forecast Wholesale'!$F$75*N29), "", '8. Forecast Wholesale'!$F$75*N29) -> 1138246.986 | R29: 3.250304788
B30: =IF('3. Rate Classes'!Q29=1,'3. Rate Classes'!C29, 0) -> Unmetered Scattered Load | D30: =IF(ISERROR(VLOOKUP($B30, '3. Rate Classes'!$C$24:$H$45,6,0)), "", VLOOKUP($B30, '3. Rate Classes'!$C$24:$H$45,6,0)) -> kWh | F30: =VLOOKUP($B30, '9. Adj Network to Current WS'!$B$25:$R$47, 17,0) -> 0.00561139543 | H30: =VLOOKUP('9. Adj Network to Current WS'!$B30, '4. RRR Data'!$B$27:$M$49,11,0) -> 6119027.663 | J30: =VLOOKUP('9. Adj Network to Current WS'!$B30, '4. RRR Data'!$B$27:$M$49,12,0) -> 0 | L30: 34336.28386 | N30: 0.002217709456 | P30: =IF(ISERROR('8. Forecast Wholesale'!$F$75*N30), "", '8. Forecast Wholesale'!$F$75*N30) -> 37310.95905 | R30: 0.006097530704
B31: =IF('3. Rate Classes'!Q30=1,'3. Rate Classes'!C30, 0) -> Sentinel Lighting | D31: =IF(ISERROR(VLOOKUP($B31, '3. Rate Classes'!$C$24:$H$45,6,0)), "", VLOOKUP($B31, '3. Rate Classes'!$C$24:$H$45,6,0)) -> kW | F31: =VLOOKUP($B31, '9. Adj Network to Current WS'!$B$25:$R$47, 17,0) -> 1.688439351 | H31: =VLOOKUP('9. Adj Network to Current WS'!$B31, '4. RRR Data'!$B$27:$M$49,11,0) -> 523767 | J31: =VLOOKUP('9. Adj Network to Current WS'!$B31, '4. RRR Data'!$B$27:$M$49,12,0) -> 1455 | L31: 2456.679256 | N31: 0.0001586718248 | P31: =IF(ISERROR('8. Forecast Wholesale'!$F$75*N31), "", '8. Forecast Wholesale'!$F$75*N31) -> 2669.510175 | R31: 1.834714897
B32: =IF('3. Rate Classes'!Q31=1,'3. Rate Classes'!C31, 0) -> Street Lighting | D32: =IF(ISERROR(VLOOKUP($B32, '3. Rate Classes'!$C$24:$H$45,6,0)), "", VLOOKUP($B32, '3. Rate Classes'!$C$24:$H$45,6,0)) -> kW | F32: =VLOOKUP($B32, '9. Adj Network to Current WS'!$B$25:$R$47, 17,0) -> 1.782848618 | H32: =VLOOKUP('9. Adj Network to Current WS'!$B32, '4. RRR Data'!$B$27:$M$49,11,0) -> 19480569 | J32: =VLOOKUP('9. Adj Network to Current WS'!$B32, '4. RRR Data'!$B$27:$M$49,12,0) -> 54547 | L32: 97249.04358 | N32: 0.006281114299 | P32: =IF(ISERROR('8. Forecast Wholesale'!$F$75*N32), "", '8. Forecast Wholesale'!$F$75*N32) -> 105674.0764 | R32: 1.937303176
B33: =IF('3. Rate Classes'!Q32=1,'3. Rate Classes'!C32, 0) -> 0 | D33: =IF(ISERROR(VLOOKUP($B33, '3. Rate Classes'!$C$24:$H$45,6,0)), "", VLOOKUP($B33, '3. Rate Classes'!$C$24:$H$45,6,0)) ->  | F33: =VLOOKUP($B33, '9. Adj Network to Current WS'!$B$25:$R$47, 17,0) ->  | H33: =VLOOKUP('9. Adj Network to Current WS'!$B33, '4. RRR Data'!$B$27:$M$49,11,0) -> 0 | J33: =VLOOKUP('9. Adj Network to Current WS'!$B33, '4. RRR Data'!$B$27:$M$49,12,0) -> 0 | P33: =IF(ISERROR('8. Forecast Wholesale'!$F$75*N33), "", '8. Forecast Wholesale'!$F$75*N33) -> 
B34: =IF('3. Rate Classes'!Q33=1,'3. Rate Classes'!C33, 0) -> 0 | D34: =IF(ISERROR(VLOOKUP($B34, '3. Rate Classes'!$C$24:$H$45,6,0)), "", VLOOKUP($B34, '3. Rate Classes'!$C$24:$H$45,6,0)) ->  | F34: =VLOOKUP($B34, '9. Adj Network to Current WS'!$B$25:$R$47, 17,0) ->  | H34: =VLOOKUP('9. Adj Network to Current WS'!$B34, '4. RRR Data'!$B$27:$M$49,11,0) -> 0 | J34: =VLOOKUP('9. Adj Network to Current WS'!$B34, '4. RRR Data'!$B$27:$M$49,12,0) -> 0 | P34: =IF(ISERROR('8. Forecast Wholesale'!$F$75*N34), "", '8. Forecast Wholesale'!$F$75*N34) -> 
B35: =IF('3. Rate Classes'!Q34=1,'3. Rate Classes'!C34, 0) -> 0 | D35: =IF(ISERROR(VLOOKUP($B35, '3. Rate Classes'!$C$24:$H$45,6,0)), "", VLOOKUP($B35, '3. Rate Classes'!$C$24:$H$45,6,0)) ->  | F35: =VLOOKUP($B35, '9. Adj Network to Current WS'!$B$25:$R$47, 17,0) ->  | H35: =VLOOKUP('9. Adj Network to Current WS'!$B35, '4. RRR Data'!$B$27:$M$49,11,0) -> 0 | J35: =VLOOKUP('9. Adj Network to Current WS'!$B35, '4. RRR Data'!$B$27:$M$49,12,0) -> 0 | P35: =IF(ISERROR('8. Forecast Wholesale'!$F$75*N35), "", '8. Forecast Wholesale'!$F$75*N35) -> 
B36: =IF('3. Rate Classes'!Q35=1,'3. Rate Classes'!C35, 0) -> 0 | D36: =IF(ISERROR(VLOOKUP($B36, '3. Rate Classes'!$C$24:$H$45,6,0)), "", VLOOKUP($B36, '3. Rate Classes'!$C$24:$H$45,6,0)) ->  | F36: =VLOOKUP($B36, '9. Adj Network to Current WS'!$B$25:$R$47, 17,0) ->  | H36: =VLOOKUP('9. Adj Network to Current WS'!$B36, '4. RRR Data'!$B$27:$M$49,11,0) -> 0 | J36: =VLOOKUP('9. Adj Network to Current WS'!$B36, '4. RRR Data'!$B$27:$M$49,12,0) -> 0 | P36: =IF(ISERROR('8. Forecast Wholesale'!$F$75*N36), "", '8. Forecast Wholesale'!$F$75*N36) -> 
B37: =IF('3. Rate Classes'!Q36=1,'3. Rate Classes'!C36, 0) -> 0 | D37: =IF(ISERROR(VLOOKUP($B37, '3. Rate Classes'!$C$24:$H$45,6,0)), "", VLOOKUP($B37, '3. Rate Classes'!$C$24:$H$45,6,0)) ->  | F37: =VLOOKUP($B37, '9. Adj Network to Current WS'!$B$25:$R$47, 17,0) ->  | H37: =VLOOKUP('9. Adj Network to Current WS'!$B37, '4. RRR Data'!$B$27:$M$49,11,0) -> 0 | J37: =VLOOKUP('9. Adj Network to Current WS'!$B37, '4. RRR Data'!$B$27:$M$49,12,0) -> 0 | P37: =IF(ISERROR('8. Forecast Wholesale'!$F$75*N37), "", '8. Forecast Wholesale'!$F$75*N37) -> 
B38: =IF('3. Rate Classes'!Q37=1,'3. Rate Classes'!C37, 0) -> 0 | D38: =IF(ISERROR(VLOOKUP($B38, '3. Rate Classes'!$C$24:$H$45,6,0)), "", VLOOKUP($B38, '3. Rate Classes'!$C$24:$H$45,6,0)) ->  | F38: =VLOOKUP($B38, '9. Adj Network to Current WS'!$B$25:$R$47, 17,0) ->  | H38: =VLOOKUP('9. Adj Network to Current WS'!$B38, '4. RRR Data'!$B$27:$M$49,11,0) -> 0 | J38: =VLOOKUP('9. Adj Network to Current WS'!$B38, '4. RRR Data'!$B$27:$M$49,12,0) -> 0 | P38: =IF(ISERROR('8. Forecast Wholesale'!$F$75*N38), "", '8. Forecast Wholesale'!$F$75*N38) -> 
B39: =IF('3. Rate Classes'!Q38=1,'3. Rate Classes'!C38, 0) -> 0 | D39: =IF(ISERROR(VLOOKUP($B39, '3. Rate Classes'!$C$24:$H$45,6,0)), "", VLOOKUP($B39, '3. Rate Classes'!$C$24:$H$45,6,0)) ->  | F39: =VLOOKUP($B39, '9. Adj Network to Current WS'!$B$25:$R$47, 17,0) ->  | H39: =VLOOKUP('9. Adj Network to Current WS'!$B39, '4. RRR Data'!$B$27:$M$49,11,0) -> 0 | J39: =VLOOKUP('9. Adj Network to Current WS'!$B39, '4. RRR Data'!$B$27:$M$49,12,0) -> 0 | P39: =IF(ISERROR('8. Forecast Wholesale'!$F$75*N39), "", '8. Forecast Wholesale'!$F$75*N39) -> 
B40: =IF('3. Rate Classes'!Q39=1,'3. Rate Classes'!C39, 0) -> 0 | D40: =IF(ISERROR(VLOOKUP($B40, '3. Rate Classes'!$C$24:$H$45,6,0)), "", VLOOKUP($B40, '3. Rate Classes'!$C$24:$H$45,6,0)) ->  | F40: =VLOOKUP($B40, '9. Adj Network to Current WS'!$B$25:$R$47, 17,0) ->  | H40: =VLOOKUP('9. Adj Network to Current WS'!$B40, '4. RRR Data'!$B$27:$M$49,11,0) -> 0 | J40: =VLOOKUP('9. Adj Network to Current WS'!$B40, '4. RRR Data'!$B$27:$M$49,12,0) -> 0 | P40: =IF(ISERROR('8. Forecast Wholesale'!$F$75*N40), "", '8. Forecast Wholesale'!$F$75*N40) -> 
B41: =IF('3. Rate Classes'!Q40=1,'3. Rate Classes'!C40, 0) -> 0 | D41: =IF(ISERROR(VLOOKUP($B41, '3. Rate Classes'!$C$24:$H$45,6,0)), "", VLOOKUP($B41, '3. Rate Classes'!$C$24:$H$45,6,0)) ->  | F41: =VLOOKUP($B41, '9. Adj Network to Current WS'!$B$25:$R$47, 17,0) ->  | H41: =VLOOKUP('9. Adj Network to Current WS'!$B41, '4. RRR Data'!$B$27:$M$49,11,0) -> 0 | J41: =VLOOKUP('9. Adj Network to Current WS'!$B41, '4. RRR Data'!$B$27:$M$49,12,0) -> 0 | P41: =IF(ISERROR('8. Forecast Wholesale'!$F$75*N41), "", '8. Forecast Wholesale'!$F$75*N41) -> 
B42: =IF('3. Rate Classes'!Q41=1,'3. Rate Classes'!C41, 0) -> 0 | D42: =IF(ISERROR(VLOOKUP($B42, '3. Rate Classes'!$C$24:$H$45,6,0)), "", VLOOKUP($B42, '3. Rate Classes'!$C$24:$H$45,6,0)) ->  | F42: =VLOOKUP($B42, '9. Adj Network to Current WS'!$B$25:$R$47, 17,0) ->  | H42: =VLOOKUP('9. Adj Network to Current WS'!$B42, '4. RRR Data'!$B$27:$M$49,11,0) -> 0 | J42: =VLOOKUP('9. Adj Network to Current WS'!$B42, '4. RRR Data'!$B$27:$M$49,12,0) -> 0 | P42: =IF(ISERROR('8. Forecast Wholesale'!$F$75*N42), "", '8. Forecast Wholesale'!$F$75*N42) -> 
B43: =IF('3. Rate Classes'!Q42=1,'3. Rate Classes'!C42, 0) -> 0 | D43: =IF(ISERROR(VLOOKUP($B43, '3. Rate Classes'!$C$24:$H$45,6,0)), "", VLOOKUP($B43, '3. Rate Classes'!$C$24:$H$45,6,0)) ->  | F43: =VLOOKUP($B43, '9. Adj Network to Current WS'!$B$25:$R$47, 17,0) ->  | H43: =VLOOKUP('9. Adj Network to Current WS'!$B43, '4. RRR Data'!$B$27:$M$49,11,0) -> 0 | J43: =VLOOKUP('9. Adj Network to Current WS'!$B43, '4. RRR Data'!$B$27:$M$49,12,0) -> 0 | P43: =IF(ISERROR('8. Forecast Wholesale'!$F$75*N43), "", '8. Forecast Wholesale'!$F$75*N43) -> 
B44: =IF('3. Rate Classes'!Q43=1,'3. Rate Classes'!C43, 0) -> 0 | D44: =IF(ISERROR(VLOOKUP($B44, '3. Rate Classes'!$C$24:$H$45,6,0)), "", VLOOKUP($B44, '3. Rate Classes'!$C$24:$H$45,6,0)) ->  | F44: =VLOOKUP($B44, '9. Adj Network to Current WS'!$B$25:$R$47, 17,0) ->  | H44: =VLOOKUP('9. Adj Network to Current WS'!$B44, '4. RRR Data'!$B$27:$M$49,11,0) -> 0 | J44: =VLOOKUP('9. Adj Network to Current WS'!$B44, '4. RRR Data'!$B$27:$M$49,12,0) -> 0 | P44: =IF(ISERROR('8. Forecast Wholesale'!$F$75*N44), "", '8. Forecast Wholesale'!$F$75*N44) -> 
B45: =IF('3. Rate Classes'!Q44=1,'3. Rate Classes'!C44, 0) -> 0 | D45: =IF(ISERROR(VLOOKUP($B45, '3. Rate Classes'!$C$24:$H$45,6,0)), "", VLOOKUP($B45, '3. Rate Classes'!$C$24:$H$45,6,0)) ->  | F45: =VLOOKUP($B45, '9. Adj Network to Current WS'!$B$25:$R$47, 17,0) ->  | H45: =VLOOKUP('9. Adj Network to Current WS'!$B45, '4. RRR Data'!$B$27:$M$49,11,0) -> 0 | J45: =VLOOKUP('9. Adj Network to Current WS'!$B45, '4. RRR Data'!$B$27:$M$49,12,0) -> 0 | P45: =IF(ISERROR('8. Forecast Wholesale'!$F$75*N45), "", '8. Forecast Wholesale'!$F$75*N45) -> 
B46: =IF('3. Rate Classes'!Q45=1,'3. Rate Classes'!C45, 0) -> 0 | D46: =IF(ISERROR(VLOOKUP($B46, '3. Rate Classes'!$C$24:$H$45,6,0)), "", VLOOKUP($B46, '3. Rate Classes'!$C$24:$H$45,6,0)) ->  | F46: =VLOOKUP($B46, '9. Adj Network to Current WS'!$B$25:$R$47, 17,0) ->  | H46: =VLOOKUP('9. Adj Network to Current WS'!$B46, '4. RRR Data'!$B$27:$M$49,11,0) -> 0 | J46: =VLOOKUP('9. Adj Network to Current WS'!$B46, '4. RRR Data'!$B$27:$M$49,12,0) -> 0 | P46: =IF(ISERROR('8. Forecast Wholesale'!$F$75*N46), "", '8. Forecast Wholesale'!$F$75*N46) -> 
L49: =SUM(L25:L46) -> 15482769.29

Sheet 12. Adj Conn. to Forecast WS
B13: The purpose of this sheet is to update the re-aligned RTS Connection Rates to recover forecast wholesale connection costs.
B19: Rate Class
B22: Rate Class | D22: Unit | F22: Adjusted RTSR-Connection | H22: Loss Adjusted Billed kWh | J22: Loss Adjusted Billed kW | L22: Billed Amount | N22: Billed Amount % | P22: Forecast Wholesale Billing | R22: Proposed RTSR Connection
B25: =IF('3. Rate Classes'!Q24=1,'3. Rate Classes'!C24, 0) -> Residential | D25: =IF(ISERROR(VLOOKUP($B25, '3. Rate Classes'!$C$24:$H$45,6,0)), "", VLOOKUP($B25, '3. Rate Classes'!$C$24:$H$45,6,0)) -> kWh | F25: =VLOOKUP($B25, '10. Adj Conn. to Current WS'!$B$25:$R$47, 17,0) -> 0.003987293158 | H25: =VLOOKUP('9. Adj Network to Current WS'!$B25, '4. RRR Data'!$B$27:$M$49,11,0) -> 950357422.3 | J25: =VLOOKUP('9. Adj Network to Current WS'!$B25, '4. RRR Data'!$B$27:$M$49,12,0) -> 0 | L25: =IF(F25="", "", IF(D25="kWh", F25*H25, F25*J25)) -> 3789353.648 | N25: =IF(ISERROR(L25/$L$49), "", L25/$L$49) -> 0.3818382226 | P25: =IF(ISERROR('8. Forecast Wholesale'!$P$75*N25), "", '8. Forecast Wholesale'!$P$75*N25) -> 3906336.038 | R25: =IF(D25="","",IF(D25="kWh",IF(H25<>0,P25/H25,),IF(J25<>0,P25/J25,0))) -> 0.004110386204
B26: =IF('3. Rate Classes'!Q25=1,'3. Rate Classes'!C25, 0) -> General Service Less Than 50 kW | D26: =IF(ISERROR(VLOOKUP($B26, '3. Rate Classes'!$C$24:$H$45,6,0)), "", VLOOKUP($B26, '3. Rate Classes'!$C$24:$H$45,6,0)) -> kWh | F26: =VLOOKUP($B26, '10. Adj Conn. to Current WS'!$B$25:$R$47, 17,0) -> 0.003598288947 | H26: =VLOOKUP('9. Adj Network to Current WS'!$B26, '4. RRR Data'!$B$27:$M$49,11,0) -> 303485217.7 | J26: =VLOOKUP('9. Adj Network to Current WS'!$B26, '4. RRR Data'!$B$27:$M$49,12,0) -> 0 | L26: 1092027.505 | N26: 0.1100393049 | P26: =IF(ISERROR('8. Forecast Wholesale'!$P$75*N26), "", '8. Forecast Wholesale'!$P$75*N26) -> 1125739.847 | R26: 0.003709372916
B27: =IF('3. Rate Classes'!Q26=1,'3. Rate Classes'!C26, 0) -> General Service 50 to 2,999 kW | D27: =IF(ISERROR(VLOOKUP($B27, '3. Rate Classes'!$C$24:$H$45,6,0)), "", VLOOKUP($B27, '3. Rate Classes'!$C$24:$H$45,6,0)) -> kW | F27: =VLOOKUP($B27, '10. Adj Conn. to Current WS'!$B$25:$R$47, 17,0) -> 1.721635385 | H27: =VLOOKUP('9. Adj Network to Current WS'!$B27, '4. RRR Data'!$B$27:$M$49,11,0) -> 983615976 | J27: =VLOOKUP('9. Adj Network to Current WS'!$B27, '4. RRR Data'!$B$27:$M$49,12,0) -> 2348698 | L27: 4043601.585 | N27: 0.4074577846 | P27: =IF(ISERROR('8. Forecast Wholesale'!$P$75*N27), "", '8. Forecast Wholesale'!$P$75*N27) -> 4168432.947 | R27: 1.77478456
B28: =IF('3. Rate Classes'!Q27=1,'3. Rate Classes'!C27, 0) -> General Service 3,000 to 4,999 kW | D28: =IF(ISERROR(VLOOKUP($B28, '3. Rate Classes'!$C$24:$H$45,6,0)), "", VLOOKUP($B28, '3. Rate Classes'!$C$24:$H$45,6,0)) -> kW | F28: =VLOOKUP($B28, '10. Adj Conn. to Current WS'!$B$25:$R$47, 17,0) -> 1.894839509 | H28: =VLOOKUP('9. Adj Network to Current WS'!$B28, '4. RRR Data'!$B$27:$M$49,11,0) -> 48838845 | J28: =VLOOKUP('9. Adj Network to Current WS'!$B28, '4. RRR Data'!$B$27:$M$49,12,0) -> 132193 | L28: 250484.5193 | N28: 0.02524033715 | P28: =IF(ISERROR('8. Forecast Wholesale'!$P$75*N28), "", '8. Forecast Wholesale'!$P$75*N28) -> 258217.3097 | R28: 1.953335727
B29: =IF('3. Rate Classes'!Q28=1,'3. Rate Classes'!C28, 0) -> Large Use | D29: =IF(ISERROR(VLOOKUP($B29, '3. Rate Classes'!$C$24:$H$45,6,0)), "", VLOOKUP($B29, '3. Rate Classes'!$C$24:$H$45,6,0)) -> kW | F29: =VLOOKUP($B29, '10. Adj Conn. to Current WS'!$B$25:$R$47, 17,0) -> 1.894839509 | H29: =VLOOKUP('9. Adj Network to Current WS'!$B29, '4. RRR Data'!$B$27:$M$49,11,0) -> 199771107 | J29: =VLOOKUP('9. Adj Network to Current WS'!$B29, '4. RRR Data'!$B$27:$M$49,12,0) -> 350197 | L29: 663567.1117 | N29: 0.06686504088 | P29: =IF(ISERROR('8. Forecast Wholesale'!$P$75*N29), "", '8. Forecast Wholesale'!$P$75*N29) -> 684052.3116 | R29: 1.953335727
B30: =IF('3. Rate Classes'!Q29=1,'3. Rate Classes'!C29, 0) -> Unmetered Scattered Load | D30: =IF(ISERROR(VLOOKUP($B30, '3. Rate Classes'!$C$24:$H$45,6,0)), "", VLOOKUP($B30, '3. Rate Classes'!$C$24:$H$45,6,0)) -> kWh | F30: =VLOOKUP($B30, '10. Adj Conn. to Current WS'!$B$25:$R$47, 17,0) -> 0.003598288947 | H30: =VLOOKUP('9. Adj Network to Current WS'!$B30, '4. RRR Data'!$B$27:$M$49,11,0) -> 6119027.663 | J30: =VLOOKUP('9. Adj Network to Current WS'!$B30, '4. RRR Data'!$B$27:$M$49,12,0) -> 0 | L30: 22018.02961 | N30: 0.002218670009 | P30: =IF(ISERROR('8. Forecast Wholesale'!$P$75*N30), "", '8. Forecast Wholesale'!$P$75*N30) -> 22697.75549 | R30: 0.003709372916
B31: =IF('3. Rate Classes'!Q30=1,'3. Rate Classes'!C30, 0) -> Sentinel Lighting | D31: =IF(ISERROR(VLOOKUP($B31, '3. Rate Classes'!$C$24:$H$45,6,0)), "", VLOOKUP($B31, '3. Rate Classes'!$C$24:$H$45,6,0)) -> kW | F31: =VLOOKUP($B31, '10. Adj Conn. to Current WS'!$B$25:$R$47, 17,0) -> 1.067816558 | H31: =VLOOKUP('9. Adj Network to Current WS'!$B31, '4. RRR Data'!$B$27:$M$49,11,0) -> 523767 | J31: =VLOOKUP('9. Adj Network to Current WS'!$B31, '4. RRR Data'!$B$27:$M$49,12,0) -> 1455 | L31: 1553.673092 | N31: 0.0001565575101 | P31: =IF(ISERROR('8. Forecast Wholesale'!$P$75*N31), "", '8. Forecast Wholesale'!$P$75*N31) -> 1601.637048 | R31: 1.100781476
B32: =IF('3. Rate Classes'!Q31=1,'3. Rate Classes'!C31, 0) -> Street Lighting | D32: =IF(ISERROR(VLOOKUP($B32, '3. Rate Classes'!$C$24:$H$45,6,0)), "", VLOOKUP($B32, '3. Rate Classes'!$C$24:$H$45,6,0)) -> kW | F32: =VLOOKUP($B32, '10. Adj Conn. to Current WS'!$B$25:$R$47, 17,0) -> 1.125097428 | H32: =VLOOKUP('9. Adj Network to Current WS'!$B32, '4. RRR Data'!$B$27:$M$49,11,0) -> 19480569 | J32: =VLOOKUP('9. Adj Network to Current WS'!$B32, '4. RRR Data'!$B$27:$M$49,12,0) -> 54547 | L32: 61370.6894 | N32: 0.006184082338 | P32: =IF(ISERROR('8. Forecast Wholesale'!$P$75*N32), "", '8. Forecast Wholesale'!$P$75*N32) -> 63265.28426 | R32: 1.159830683
B33: =IF('3. Rate Classes'!Q32=1,'3. Rate Classes'!C32, 0) -> 0 | D33: =IF(ISERROR(VLOOKUP($B33, '3. Rate Classes'!$C$24:$H$45,6,0)), "", VLOOKUP($B33, '3. Rate Classes'!$C$24:$H$45,6,0)) ->  | F33: =VLOOKUP($B33, '10. Adj Conn. to Current WS'!$B$25:$R$47, 17,0) ->  | H33: =VLOOKUP('9. Adj Network to Current WS'!$B33, '4. RRR Data'!$B$27:$M$49,11,0) -> 0 | J33: =VLOOKUP('9. Adj Network to Current WS'!$B33, '4. RRR Data'!$B$27:$M$49,12,0) -> 0 | P33: =IF(ISERROR('8. Forecast Wholesale'!$P$75*N33), "", '8. Forecast Wholesale'!$P$75*N33) -> 
B34: =IF('3. Rate Classes'!Q33=1,'3. Rate Classes'!C33, 0) -> 0 | D34: =IF(ISERROR(VLOOKUP($B34, '3. Rate Classes'!$C$24:$H$45,6,0)), "", VLOOKUP($B34, '3. Rate Classes'!$C$24:$H$45,6,0)) ->  | F34: =VLOOKUP($B34, '10. Adj Conn. to Current WS'!$B$25:$R$47, 17,0) ->  | H34: =VLOOKUP('9. Adj Network to Current WS'!$B34, '4. RRR Data'!$B$27:$M$49,11,0) -> 0 | J34: =VLOOKUP('9. Adj Network to Current WS'!$B34, '4. RRR Data'!$B$27:$M$49,12,0) -> 0 | P34: =IF(ISERROR('8. Forecast Wholesale'!$P$75*N34), "", '8. Forecast Wholesale'!$P$75*N34) -> 
B35: =IF('3. Rate Classes'!Q34=1,'3. Rate Classes'!C34, 0) -> 0 | D35: =IF(ISERROR(VLOOKUP($B35, '3. Rate Classes'!$C$24:$H$45,6,0)), "", VLOOKUP($B35, '3. Rate Classes'!$C$24:$H$45,6,0)) ->  | F35: =VLOOKUP($B35, '10. Adj Conn. to Current WS'!$B$25:$R$47, 17,0) ->  | H35: =VLOOKUP('9. Adj Network to Current WS'!$B35, '4. RRR Data'!$B$27:$M$49,11,0) -> 0 | J35: =VLOOKUP('9. Adj Network to Current WS'!$B35, '4. RRR Data'!$B$27:$M$49,12,0) -> 0 | P35: =IF(ISERROR('8. Forecast Wholesale'!$P$75*N35), "", '8. Forecast Wholesale'!$P$75*N35) -> 
B36: =IF('3. Rate Classes'!Q35=1,'3. Rate Classes'!C35, 0) -> 0 | D36: =IF(ISERROR(VLOOKUP($B36, '3. Rate Classes'!$C$24:$H$45,6,0)), "", VLOOKUP($B36, '3. Rate Classes'!$C$24:$H$45,6,0)) ->  | F36: =VLOOKUP($B36, '10. Adj Conn. to Current WS'!$B$25:$R$47, 17,0) ->  | H36: =VLOOKUP('9. Adj Network to Current WS'!$B36, '4. RRR Data'!$B$27:$M$49,11,0) -> 0 | J36: =VLOOKUP('9. Adj Network to Current WS'!$B36, '4. RRR Data'!$B$27:$M$49,12,0) -> 0 | P36: =IF(ISERROR('8. Forecast Wholesale'!$P$75*N36), "", '8. Forecast Wholesale'!$P$75*N36) -> 
B37: =IF('3. Rate Classes'!Q36=1,'3. Rate Classes'!C36, 0) -> 0 | D37: =IF(ISERROR(VLOOKUP($B37, '3. Rate Classes'!$C$24:$H$45,6,0)), "", VLOOKUP($B37, '3. Rate Classes'!$C$24:$H$45,6,0)) ->  | F37: =VLOOKUP($B37, '10. Adj Conn. to Current WS'!$B$25:$R$47, 17,0) ->  | H37: =VLOOKUP('9. Adj Network to Current WS'!$B37, '4. RRR Data'!$B$27:$M$49,11,0) -> 0 | J37: =VLOOKUP('9. Adj Network to Current WS'!$B37, '4. RRR Data'!$B$27:$M$49,12,0) -> 0 | P37: =IF(ISERROR('8. Forecast Wholesale'!$P$75*N37), "", '8. Forecast Wholesale'!$P$75*N37) -> 
B38: =IF('3. Rate Classes'!Q37=1,'3. Rate Classes'!C37, 0) -> 0 | D38: =IF(ISERROR(VLOOKUP($B38, '3. Rate Classes'!$C$24:$H$45,6,0)), "", VLOOKUP($B38, '3. Rate Classes'!$C$24:$H$45,6,0)) ->  | F38: =VLOOKUP($B38, '10. Adj Conn. to Current WS'!$B$25:$R$47, 17,0) ->  | H38: =VLOOKUP('9. Adj Network to Current WS'!$B38, '4. RRR Data'!$B$27:$M$49,11,0) -> 0 | J38: =VLOOKUP('9. Adj Network to Current WS'!$B38, '4. RRR Data'!$B$27:$M$49,12,0) -> 0 | P38: =IF(ISERROR('8. Forecast Wholesale'!$P$75*N38), "", '8. Forecast Wholesale'!$P$75*N38) -> 
B39: =IF('3. Rate Classes'!Q38=1,'3. Rate Classes'!C38, 0) -> 0 | D39: =IF(ISERROR(VLOOKUP($B39, '3. Rate Classes'!$C$24:$H$45,6,0)), "", VLOOKUP($B39, '3. Rate Classes'!$C$24:$H$45,6,0)) ->  | F39: =VLOOKUP($B39, '10. Adj Conn. to Current WS'!$B$25:$R$47, 17,0) ->  | H39: =VLOOKUP('9. Adj Network to Current WS'!$B39, '4. RRR Data'!$B$27:$M$49,11,0) -> 0 | J39: =VLOOKUP('9. Adj Network to Current WS'!$B39, '4. RRR Data'!$B$27:$M$49,12,0) -> 0 | P39: =IF(ISERROR('8. Forecast Wholesale'!$P$75*N39), "", '8. Forecast Wholesale'!$P$75*N39) -> 
B40: =IF('3. Rate Classes'!Q39=1,'3. Rate Classes'!C39, 0) -> 0 | D40: =IF(ISERROR(VLOOKUP($B40, '3. Rate Classes'!$C$24:$H$45,6,0)), "", VLOOKUP($B40, '3. Rate Classes'!$C$24:$H$45,6,0)) ->  | F40: =VLOOKUP($B40, '10. Adj Conn. to Current WS'!$B$25:$R$47, 17,0) ->  | H40: =VLOOKUP('9. Adj Network to Current WS'!$B40, '4. RRR Data'!$B$27:$M$49,11,0) -> 0 | J40: =VLOOKUP('9. Adj Network to Current WS'!$B40, '4. RRR Data'!$B$27:$M$49,12,0) -> 0 | P40: =IF(ISERROR('8. Forecast Wholesale'!$P$75*N40), "", '8. Forecast Wholesale'!$P$75*N40) -> 
B41: =IF('3. Rate Classes'!Q40=1,'3. Rate Classes'!C40, 0) -> 0 | D41: =IF(ISERROR(VLOOKUP($B41, '3. Rate Classes'!$C$24:$H$45,6,0)), "", VLOOKUP($B41, '3. Rate Classes'!$C$24:$H$45,6,0)) ->  | F41: =VLOOKUP($B41, '10. Adj Conn. to Current WS'!$B$25:$R$47, 17,0) ->  | H41: =VLOOKUP('9. Adj Network to Current WS'!$B41, '4. RRR Data'!$B$27:$M$49,11,0) -> 0 | J41: =VLOOKUP('9. Adj Network to Current WS'!$B41, '4. RRR Data'!$B$27:$M$49,12,0) -> 0 | P41: =IF(ISERROR('8. Forecast Wholesale'!$P$75*N41), "", '8. Forecast Wholesale'!$P$75*N41) -> 
B42: =IF('3. Rate Classes'!Q41=1,'3. Rate Classes'!C41, 0) -> 0 | D42: =IF(ISERROR(VLOOKUP($B42, '3. Rate Classes'!$C$24:$H$45,6,0)), "", VLOOKUP($B42, '3. Rate Classes'!$C$24:$H$45,6,0)) ->  | F42: =VLOOKUP($B42, '10. Adj Conn. to Current WS'!$B$25:$R$47, 17,0) ->  | H42: =VLOOKUP('9. Adj Network to Current WS'!$B42, '4. RRR Data'!$B$27:$M$49,11,0) -> 0 | J42: =VLOOKUP('9. Adj Network to Current WS'!$B42, '4. RRR Data'!$B$27:$M$49,12,0) -> 0 | P42: =IF(ISERROR('8. Forecast Wholesale'!$P$75*N42), "", '8. Forecast Wholesale'!$P$75*N42) -> 
B43: =IF('3. Rate Classes'!Q42=1,'3. Rate Classes'!C42, 0) -> 0 | D43: =IF(ISERROR(VLOOKUP($B43, '3. Rate Classes'!$C$24:$H$45,6,0)), "", VLOOKUP($B43, '3. Rate Classes'!$C$24:$H$45,6,0)) ->  | F43: =VLOOKUP($B43, '10. Adj Conn. to Current WS'!$B$25:$R$47, 17,0) ->  | H43: =VLOOKUP('9. Adj Network to Current WS'!$B43, '4. RRR Data'!$B$27:$M$49,11,0) -> 0 | J43: =VLOOKUP('9. Adj Network to Current WS'!$B43, '4. RRR Data'!$B$27:$M$49,12,0) -> 0 | P43: =IF(ISERROR('8. Forecast Wholesale'!$P$75*N43), "", '8. Forecast Wholesale'!$P$75*N43) -> 
B44: =IF('3. Rate Classes'!Q43=1,'3. Rate Classes'!C43, 0) -> 0 | D44: =IF(ISERROR(VLOOKUP($B44, '3. Rate Classes'!$C$24:$H$45,6,0)), "", VLOOKUP($B44, '3. Rate Classes'!$C$24:$H$45,6,0)) ->  | F44: =VLOOKUP($B44, '10. Adj Conn. to Current WS'!$B$25:$R$47, 17,0) ->  | H44: =VLOOKUP('9. Adj Network to Current WS'!$B44, '4. RRR Data'!$B$27:$M$49,11,0) -> 0 | J44: =VLOOKUP('9. Adj Network to Current WS'!$B44, '4. RRR Data'!$B$27:$M$49,12,0) -> 0 | P44: =IF(ISERROR('8. Forecast Wholesale'!$P$75*N44), "", '8. Forecast Wholesale'!$P$75*N44) -> 
B45: =IF('3. Rate Classes'!Q44=1,'3. Rate Classes'!C44, 0) -> 0 | D45: =IF(ISERROR(VLOOKUP($B45, '3. Rate Classes'!$C$24:$H$45,6,0)), "", VLOOKUP($B45, '3. Rate Classes'!$C$24:$H$45,6,0)) ->  | F45: =VLOOKUP($B45, '10. Adj Conn. to Current WS'!$B$25:$R$47, 17,0) ->  | H45: =VLOOKUP('9. Adj Network to Current WS'!$B45, '4. RRR Data'!$B$27:$M$49,11,0) -> 0 | J45: =VLOOKUP('9. Adj Network to Current WS'!$B45, '4. RRR Data'!$B$27:$M$49,12,0) -> 0 | P45: =IF(ISERROR('8. Forecast Wholesale'!$P$75*N45), "", '8. Forecast Wholesale'!$P$75*N45) -> 
B46: =IF('3. Rate Classes'!Q45=1,'3. Rate Classes'!C45, 0) -> 0 | D46: =IF(ISERROR(VLOOKUP($B46, '3. Rate Classes'!$C$24:$H$45,6,0)), "", VLOOKUP($B46, '3. Rate Classes'!$C$24:$H$45,6,0)) ->  | F46: =VLOOKUP($B46, '10. Adj Conn. to Current WS'!$B$25:$R$47, 17,0) ->  | H46: =VLOOKUP('9. Adj Network to Current WS'!$B46, '4. RRR Data'!$B$27:$M$49,11,0) -> 0 | J46: =VLOOKUP('9. Adj Network to Current WS'!$B46, '4. RRR Data'!$B$27:$M$49,12,0) -> 0 | P46: =IF(ISERROR('8. Forecast Wholesale'!$P$75*N46), "", '8. Forecast Wholesale'!$P$75*N46) -> 
L49: =SUM(L25:L46) -> 9923976.76

Sheet 13. Final 2013 RTS Rates
B13: For Cost of Service Applicants, please enter the following Proposed RTS rates into your rates model. For IRM applicants, please enter these rates into the 2013 IRM Rate Generator, Sheet 11 "Proposed Rates", column I. Please note that the rate description for the RTSRs has been transfered to Sheet 11, Column A from Sheet 4.
B23: Rate Class | D23: Unit | F23: Proposed RTSR Network | H23: Proposed RTSR Connection
B26: =IF('3. Rate Classes'!Q24=1,'3. Rate Classes'!C24, 0) -> Residential | D26: =IF(ISERROR(VLOOKUP($B26, '3. Rate Classes'!$C$24:$H$45,6,0)), "", VLOOKUP($B26, '3. Rate Classes'!$C$24:$H$45,6,0)) -> kWh | F26: =VLOOKUP($B26, '11. Adj Network to Forecast WS'!$B$25:$R$48,17,0) -> 0.006632401819 | H26: =VLOOKUP($B26, '12. Adj Conn. to Forecast WS'!$B$25:$R$48,17,0) -> 0.004110386204
B27: =IF('3. Rate Classes'!Q25=1,'3. Rate Classes'!C25, 0) -> General Service Less Than 50 kW | D27: =IF(ISERROR(VLOOKUP($B27, '3. Rate Classes'!$C$24:$H$45,6,0)), "", VLOOKUP($B27, '3. Rate Classes'!$C$24:$H$45,6,0)) -> kWh | F27: =VLOOKUP($B27, '11. Adj Network to Forecast WS'!$B$25:$R$48,17,0) -> 0.006097530704 | H27: =VLOOKUP($B27, '12. Adj Conn. to Forecast WS'!$B$25:$R$48,17,0) -> 0.003709372916
B28: =IF('3. Rate Classes'!Q26=1,'3. Rate Classes'!C26, 0) -> General Service 50 to 2,999 kW | D28: =IF(ISERROR(VLOOKUP($B28, '3. Rate Classes'!$C$24:$H$45,6,0)), "", VLOOKUP($B28, '3. Rate Classes'!$C$24:$H$45,6,0)) -> kW | F28: =VLOOKUP($B28, '11. Adj Network to Forecast WS'!$B$25:$R$48,17,0) -> 2.962009257 | H28: =VLOOKUP($B28, '12. Adj Conn. to Forecast WS'!$B$25:$R$48,17,0) -> 1.77478456
B29: =IF('3. Rate Classes'!Q27=1,'3. Rate Classes'!C27, 0) -> General Service 3,000 to 4,999 kW | D29: =IF(ISERROR(VLOOKUP($B29, '3. Rate Classes'!$C$24:$H$45,6,0)), "", VLOOKUP($B29, '3. Rate Classes'!$C$24:$H$45,6,0)) -> kW | F29: =VLOOKUP($B29, '11. Adj Network to Forecast WS'!$B$25:$R$48,17,0) -> 3.250304788 | H29: =VLOOKUP($B29, '12. Adj Conn. to Forecast WS'!$B$25:$R$48,17,0) -> 1.953335727
B30: =IF('3. Rate Classes'!Q28=1,'3. Rate Classes'!C28, 0) -> Large Use | D30: =IF(ISERROR(VLOOKUP($B30, '3. Rate Classes'!$C$24:$H$45,6,0)), "", VLOOKUP($B30, '3. Rate Classes'!$C$24:$H$45,6,0)) -> kW | F30: =VLOOKUP($B30, '11. Adj Network to Forecast WS'!$B$25:$R$48,17,0) -> 3.250304788 | H30: =VLOOKUP($B30, '12. Adj Conn. to Forecast WS'!$B$25:$R$48,17,0) -> 1.953335727
B31: =IF('3. Rate Classes'!Q29=1,'3. Rate Classes'!C29, 0) -> Unmetered Scattered Load | D31: =IF(ISERROR(VLOOKUP($B31, '3. Rate Classes'!$C$24:$H$45,6,0)), "", VLOOKUP($B31, '3. Rate Classes'!$C$24:$H$45,6,0)) -> kWh | F31: =VLOOKUP($B31, '11. Adj Network to Forecast WS'!$B$25:$R$48,17,0) -> 0.006097530704 | H31: =VLOOKUP($B31, '12. Adj Conn. to Forecast WS'!$B$25:$R$48,17,0) -> 0.003709372916
B32: =IF('3. Rate Classes'!Q30=1,'3. Rate Classes'!C30, 0) -> Sentinel Lighting | D32: =IF(ISERROR(VLOOKUP($B32, '3. Rate Classes'!$C$24:$H$45,6,0)), "", VLOOKUP($B32, '3. Rate Classes'!$C$24:$H$45,6,0)) -> kW | F32: =VLOOKUP($B32, '11. Adj Network to Forecast WS'!$B$25:$R$48,17,0) -> 1.834714897 | H32: =VLOOKUP($B32, '12. Adj Conn. to Forecast WS'!$B$25:$R$48,17,0) -> 1.100781476
B33: =IF('3. Rate Classes'!Q31=1,'3. Rate Classes'!C31, 0) -> Street Lighting | D33: =IF(ISERROR(VLOOKUP($B33, '3. Rate Classes'!$C$24:$H$45,6,0)), "", VLOOKUP($B33, '3. Rate Classes'!$C$24:$H$45,6,0)) -> kW | F33: =VLOOKUP($B33, '11. Adj Network to Forecast WS'!$B$25:$R$48,17,0) -> 1.937303176 | H33: =VLOOKUP($B33, '12. Adj Conn. to Forecast WS'!$B$25:$R$48,17,0) -> 1.159830683
B34: =IF('3. Rate Classes'!Q32=1,'3. Rate Classes'!C32, 0) -> 0 | D34: =IF(ISERROR(VLOOKUP($B34, '3. Rate Classes'!$C$24:$H$45,6,0)), "", VLOOKUP($B34, '3. Rate Classes'!$C$24:$H$45,6,0)) ->  | F34: =VLOOKUP($B34, '11. Adj Network to Forecast WS'!$B$25:$R$48,17,0) ->  | H34: =VLOOKUP($B34, '12. Adj Conn. to Forecast WS'!$B$25:$R$48,17,0) -> 
B35: =IF('3. Rate Classes'!Q33=1,'3. Rate Classes'!C33, 0) -> 0 | D35: =IF(ISERROR(VLOOKUP($B35, '3. Rate Classes'!$C$24:$H$45,6,0)), "", VLOOKUP($B35, '3. Rate Classes'!$C$24:$H$45,6,0)) ->  | F35: =VLOOKUP($B35, '11. Adj Network to Forecast WS'!$B$25:$R$48,17,0) ->  | H35: =VLOOKUP($B35, '12. Adj Conn. to Forecast WS'!$B$25:$R$48,17,0) -> 
B36: =IF('3. Rate Classes'!Q34=1,'3. Rate Classes'!C34, 0) -> 0 | D36: =IF(ISERROR(VLOOKUP($B36, '3. Rate Classes'!$C$24:$H$45,6,0)), "", VLOOKUP($B36, '3. Rate Classes'!$C$24:$H$45,6,0)) ->  | F36: =VLOOKUP($B36, '11. Adj Network to Forecast WS'!$B$25:$R$48,17,0) ->  | H36: =VLOOKUP($B36, '12. Adj Conn. to Forecast WS'!$B$25:$R$48,17,0) -> 
B37: =IF('3. Rate Classes'!Q35=1,'3. Rate Classes'!C35, 0) -> 0 | D37: =IF(ISERROR(VLOOKUP($B37, '3. Rate Classes'!$C$24:$H$45,6,0)), "", VLOOKUP($B37, '3. Rate Classes'!$C$24:$H$45,6,0)) ->  | F37: =VLOOKUP($B37, '11. Adj Network to Forecast WS'!$B$25:$R$48,17,0) ->  | H37: =VLOOKUP($B37, '12. Adj Conn. to Forecast WS'!$B$25:$R$48,17,0) -> 
B38: =IF('3. Rate Classes'!Q36=1,'3. Rate Classes'!C36, 0) -> 0 | D38: =IF(ISERROR(VLOOKUP($B38, '3. Rate Classes'!$C$24:$H$45,6,0)), "", VLOOKUP($B38, '3. Rate Classes'!$C$24:$H$45,6,0)) ->  | F38: =VLOOKUP($B38, '11. Adj Network to Forecast WS'!$B$25:$R$48,17,0) ->  | H38: =VLOOKUP($B38, '12. Adj Conn. to Forecast WS'!$B$25:$R$48,17,0) -> 
B39: =IF('3. Rate Classes'!Q37=1,'3. Rate Classes'!C37, 0) -> 0 | D39: =IF(ISERROR(VLOOKUP($B39, '3. Rate Classes'!$C$24:$H$45,6,0)), "", VLOOKUP($B39, '3. Rate Classes'!$C$24:$H$45,6,0)) ->  | F39: =VLOOKUP($B39, '11. Adj Network to Forecast WS'!$B$25:$R$48,17,0) ->  | H39: =VLOOKUP($B39, '12. Adj Conn. to Forecast WS'!$B$25:$R$48,17,0) -> 
B40: =IF('3. Rate Classes'!Q38=1,'3. Rate Classes'!C38, 0) -> 0 | D40: =IF(ISERROR(VLOOKUP($B40, '3. Rate Classes'!$C$24:$H$45,6,0)), "", VLOOKUP($B40, '3. Rate Classes'!$C$24:$H$45,6,0)) ->  | F40: =VLOOKUP($B40, '11. Adj Network to Forecast WS'!$B$25:$R$48,17,0) ->  | H40: =VLOOKUP($B40, '12. Adj Conn. to Forecast WS'!$B$25:$R$48,17,0) -> 
B41: =IF('3. Rate Classes'!Q39=1,'3. Rate Classes'!C39, 0) -> 0 | D41: =IF(ISERROR(VLOOKUP($B41, '3. Rate Classes'!$C$24:$H$45,6,0)), "", VLOOKUP($B41, '3. Rate Classes'!$C$24:$H$45,6,0)) ->  | F41: =VLOOKUP($B41, '11. Adj Network to Forecast WS'!$B$25:$R$48,17,0) ->  | H41: =VLOOKUP($B41, '12. Adj Conn. to Forecast WS'!$B$25:$R$48,17,0) -> 
B42: =IF('3. Rate Classes'!Q40=1,'3. Rate Classes'!C40, 0) -> 0 | D42: =IF(ISERROR(VLOOKUP($B42, '3. Rate Classes'!$C$24:$H$45,6,0)), "", VLOOKUP($B42, '3. Rate Classes'!$C$24:$H$45,6,0)) ->  | F42: =VLOOKUP($B42, '11. Adj Network to Forecast WS'!$B$25:$R$48,17,0) ->  | H42: =VLOOKUP($B42, '12. Adj Conn. to Forecast WS'!$B$25:$R$48,17,0) -> 
B43: =IF('3. Rate Classes'!Q41=1,'3. Rate Classes'!C41, 0) -> 0 | D43: =IF(ISERROR(VLOOKUP($B43, '3. Rate Classes'!$C$24:$H$45,6,0)), "", VLOOKUP($B43, '3. Rate Classes'!$C$24:$H$45,6,0)) ->  | F43: =VLOOKUP($B43, '11. Adj Network to Forecast WS'!$B$25:$R$48,17,0) ->  | H43: =VLOOKUP($B43, '12. Adj Conn. to Forecast WS'!$B$25:$R$48,17,0) -> 
B44: =IF('3. Rate Classes'!Q42=1,'3. Rate Classes'!C42, 0) -> 0 | D44: =IF(ISERROR(VLOOKUP($B44, '3. Rate Classes'!$C$24:$H$45,6,0)), "", VLOOKUP($B44, '3. Rate Classes'!$C$24:$H$45,6,0)) ->  | F44: =VLOOKUP($B44, '11. Adj Network to Forecast WS'!$B$25:$R$48,17,0) ->  | H44: =VLOOKUP($B44, '12. Adj Conn. to Forecast WS'!$B$25:$R$48,17,0) -> 
B45: =IF('3. Rate Classes'!Q43=1,'3. Rate Classes'!C43, 0) -> 0 | D45: =IF(ISERROR(VLOOKUP($B45, '3. Rate Classes'!$C$24:$H$45,6,0)), "", VLOOKUP($B45, '3. Rate Classes'!$C$24:$H$45,6,0)) ->  | F45: =VLOOKUP($B45, '11. Adj Network to Forecast WS'!$B$25:$R$48,17,0) ->  | H45: =VLOOKUP($B45, '12. Adj Conn. to Forecast WS'!$B$25:$R$48,17,0) -> 
B46: =IF('3. Rate Classes'!Q44=1,'3. Rate Classes'!C44, 0) -> 0 | D46: =IF(ISERROR(VLOOKUP($B46, '3. Rate Classes'!$C$24:$H$45,6,0)), "", VLOOKUP($B46, '3. Rate Classes'!$C$24:$H$45,6,0)) ->  | F46: =VLOOKUP($B46, '11. Adj Network to Forecast WS'!$B$25:$R$48,17,0) ->  | H46: =VLOOKUP($B46, '12. Adj Conn. to Forecast WS'!$B$25:$R$48,17,0) -> 
B47: =IF('3. Rate Classes'!Q45=1,'3. Rate Classes'!C45, 0) -> 0 | D47: =IF(ISERROR(VLOOKUP($B47, '3. Rate Classes'!$C$24:$H$45,6,0)), "", VLOOKUP($B47, '3. Rate Classes'!$C$24:$H$45,6,0)) ->  | F47: =VLOOKUP($B47, '11. Adj Network to Forecast WS'!$B$25:$R$48,17,0) ->  | H47: =VLOOKUP($B47, '12. Adj Conn. to Forecast WS'!$B$25:$R$48,17,0) -> 

Sheet hidden1 (hidden)
A1: =IF('3. Rate Classes'!Q24=1, '3. Rate Classes'!C24, "") -> Residential | B1: 1
A2: =IF('3. Rate Classes'!Q25=1, '3. Rate Classes'!C25, "") -> General Service Less Than 50 kW | B2: 2
A3: =IF('3. Rate Classes'!Q26=1, '3. Rate Classes'!C26, "") -> General Service 50 to 2,999 kW | B3: 3
A4: =IF('3. Rate Classes'!Q27=1, '3. Rate Classes'!C27, "") -> General Service 3,000 to 4,999 kW | B4: 4
A5: =IF('3. Rate Classes'!Q28=1, '3. Rate Classes'!C28, "") -> Large Use | B5: 5
A6: =IF('3. Rate Classes'!Q29=1, '3. Rate Classes'!C29, "") -> Unmetered Scattered Load | B6: 6
A7: =IF('3. Rate Classes'!Q30=1, '3. Rate Classes'!C30, "") -> Sentinel Lighting | B7: 7
A8: =IF('3. Rate Classes'!Q31=1, '3. Rate Classes'!C31, "") -> Street Lighting | B8: 8
A9: =IF('3. Rate Classes'!Q32=1, '3. Rate Classes'!C32, "") ->  | B9: 9
A10: =IF('3. Rate Classes'!Q33=1, '3. Rate Classes'!C33, "") ->  | B10: 10
A11: =IF('3. Rate Classes'!Q34=1, '3. Rate Classes'!C34, "") ->  | B11: 11
A12: =IF('3. Rate Classes'!Q35=1, '3. Rate Classes'!C35, "") ->  | B12: 12
A13: =IF('3. Rate Classes'!Q36=1, '3. Rate Classes'!C36, "") ->  | B13: 13
A14: =IF('3. Rate Classes'!Q37=1, '3. Rate Classes'!C37, "") ->  | B14: 14
A15: =IF('3. Rate Classes'!Q38=1, '3. Rate Classes'!C38, "") ->  | B15: 15
A16: =IF('3. Rate Classes'!Q39=1, '3. Rate Classes'!C39, "") ->  | B16: 16
A17: =IF('3. Rate Classes'!Q40=1, '3. Rate Classes'!C40, "") ->  | B17: 17
A18: =IF('3. Rate Classes'!Q41=1, '3. Rate Classes'!C41, "") ->  | B18: 18
A19: =IF('3. Rate Classes'!Q42=1, '3. Rate Classes'!C42, "") ->  | B19: 19
A20: =IF('3. Rate Classes'!Q43=1, '3. Rate Classes'!C43, "") ->  | B20: 20
A21: =IF('3. Rate Classes'!Q44=1, '3. Rate Classes'!C44, "") ->  | B21: 21
A22: =IF('3. Rate Classes'!Q45=1, '3. Rate Classes'!C45, "") ->  | B22: 22
